Department,Entity, Transaction Date, Expense Type, Expense Area, Supplier Name,Transaction number, Amount, Invoice Description
DFID,CSC,01/12/2017,Scholar Engagement,Programme Costs,TFW Printers,PIN029970,91,
DFID,CSC,01/12/2017,Scholar Engagement,Programme Costs,TFW Printers,PIN029970,455,
DFID,CSC,01/12/2017,Alumni Engagement,Programme Costs,The British Council,PIN029971,3484.92,
DFID,CSC,01/12/2017,Alumni Engagement,Programme Costs,The British Council,PIN029971,1733.03,
DFID,CSC,01/12/2017,Alumni Engagement,Programme Costs,The British Council,PIN029971,8665.15,
DFID,CSC,01/12/2017,Alumni Engagement,Programme Costs,The British Council,PIN029971,10320,
DFID,CSC,01/12/2017,Alumni Engagement,Programme Costs,The British Council,PIN029971,51600,
DFID,CSC,01/12/2017,Service Provision,Admin Costs,The British Council,PIN029971,4194.27,
DFID,CSC,01/12/2017,Service Provision,Admin Costs,The British Council,PIN029971,20971.33,
DFID,CSC,01/12/2017,Programme Costs - Communication,Programme Costs,Association of Commonwealth Univs,PIN029972,7733.4,
DFID,CSC,01/12/2017,Programme Costs - Communication,Programme Costs,Association of Commonwealth Univs,PIN029972,38667,
DFID,CSC,01/12/2017,Programme Costs - Alumni,Programme Costs,Association of Commonwealth Univs,PIN029972,5333.4,
DFID,CSC,01/12/2017,Programme Costs - Alumni,Programme Costs,Association of Commonwealth Univs,PIN029972,26667,
DFID,CSC,01/12/2017,Programme Costs - Evaluation,Programme Costs,Association of Commonwealth Univs,PIN029972,10400,
DFID,CSC,01/12/2017,Programme Costs - Evaluation,Programme Costs,Association of Commonwealth Univs,PIN029972,52000,
DFID,CSC,01/12/2017,Programme Costs - Communication,Programme Costs,Association of Commonwealth Univs,PIN029973,7733.4,
DFID,CSC,01/12/2017,Programme Costs - Communication,Programme Costs,Association of Commonwealth Univs,PIN029973,38667,
DFID,CSC,01/12/2017,Programme Costs - Alumni,Programme Costs,Association of Commonwealth Univs,PIN029973,5333.4,
DFID,CSC,01/12/2017,Programme Costs - Alumni,Programme Costs,Association of Commonwealth Univs,PIN029973,26667,
DFID,CSC,01/12/2017,Programme Costs - Evaluation,Programme Costs,Association of Commonwealth Univs,PIN029973,10400,
DFID,CSC,01/12/2017,Programme Costs - Evaluation,Programme Costs,Association of Commonwealth Univs,PIN029973,52000,
DFID,CSC,01/12/2017,Visa Costs,Award Costs,Scholar,PIN029977,532,
DFID,CSC,01/12/2017,Immigration Health Surcharge,Award Costs,Scholar,PIN029977,19.2,
DFID,CSC,01/12/2017,Scholar Stipend,Award Costs,Scholar,PIN029981,1484.88,
DFID,CSC,01/12/2017,Tuition Fee,Award Costs,Birmingham City University,PIN029983,9200,
DFID,CSC,01/12/2017,Award Support Grant,Award Costs,Cardiff University,PIN029984,5000,
DFID,CSC,01/12/2017,Tuition Fee,Award Costs,Robert Gordon University,PIN029985,11360,
DFID,CSC,01/12/2017,Tuition Fee,Award Costs,The Royal College of Art,PIN029986,22500,
DFID,CSC,01/12/2017,Scholar Allowances,Award Costs,Keele University,PIN029987,675,
DFID,CSC,01/12/2017,Scholar Allowances,Award Costs,Keele University,PIN029987,600,
DFID,CSC,01/12/2017,Scholar Travel,Award Costs,Keele University,PIN029987,74.51,
DFID,CSC,01/12/2017,Scholar Allowances,Award Costs,Keele University,PIN029987,162.8,
DFID,CSC,01/12/2017,Scholar Travel,Award Costs,Keele University,PIN029987,1502.67,
DFID,CSC,01/12/2017,Tuition Fee,Award Costs,Keele University,PIN029988,12800,
DFID,CSC,01/12/2017,Tuition Fee,Award Costs,The Cambridge Commonwealth Trust,PIN029989,200700,Tuition fees for 9 scholars
DFID,CSC,01/12/2017,Tuition Fee,Award Costs,University of Dundee,PIN029990,12760,
DFID,CSC,01/12/2017,Tuition Fee,Award Costs,Kings College London,PIN029991,18420,
DFID,CSC,01/12/2017,Tuition Fee,Award Costs,Loughborough University,PIN029992,18000,
DFID,CSC,01/12/2017,Tuition Fee,Award Costs,University of Leicester,PIN029993,9964,
DFID,CSC,01/12/2017,Tuition Fee,Award Costs,University of Newcastle upon Tyne,PIN029994,1800,
DFID,CSC,01/12/2017,Tuition Fee,Award Costs,Nottingham Trent University,PIN029995,12900,
DFID,CSC,01/12/2017,Tuition Fee,Award Costs,Nottingham Trent University,PIN029996,12900,
DFID,CSC,01/12/2017,Tuition Fee,Award Costs,The University of Nottingham,PIN029997,12456,
DFID,CSC,01/12/2017,Award Support Grant,Award Costs,The University of Nottingham,PIN029998,8000,
DFID,CSC,01/12/2017,Tuition Fee,Award Costs,Queen Mary University of London,PIN029999,17450,
DFID,CSC,01/12/2017,Tuition Fee,Award Costs,Queen Mary University of London,PIN030000,19150,
DFID,CSC,01/12/2017,Tuition Fee,Award Costs,Queen Mary University of London,PIN030001,17450,
DFID,CSC,01/12/2017,Tuition Fee,Award Costs,Queen Mary University of London,PIN030002,14650,
DFID,CSC,01/12/2017,Tuition Fee,Award Costs,Queen Mary University of London,PIN030003,19150,
DFID,CSC,01/12/2017,Tuition Fee,Award Costs,Queen Mary University of London,PIN030004,11720,
DFID,CSC,01/12/2017,Tuition Fee,Award Costs,Queen Mary University of London,PIN030005,15600,
DFID,CSC,01/12/2017,Tuition Fee,Award Costs,Queen Mary University of London,PIN030006,14650,
DFID,CSC,01/12/2017,Tuition Fee,Award Costs,Queens University Belfast,PIN030007,14308,
DFID,CSC,01/12/2017,Tuition Fee,Award Costs,Queens University Belfast,PIN030007,14308,
DFID,CSC,01/12/2017,Tuition Fee,Award Costs,Queens University Belfast,PIN030008,15200,
DFID,CSC,01/12/2017,Tuition Fee,Award Costs,Queens University Belfast,PIN030009,49400,Tuition fees for 3 scholars
DFID,CSC,01/12/2017,Tuition Fee,Award Costs,University College London Fees,PIN030010,21960,
DFID,CSC,01/12/2017,Tuition Fee,Award Costs,University College London Fees,PIN030011,16656,
DFID,CSC,01/12/2017,Tuition Fee,Award Costs,University College London Fees,PIN030012,18000,
DFID,CSC,01/12/2017,Tuition Fee,Award Costs,University College London Fees,PIN030013,18000,
DFID,CSC,01/12/2017,Tuition Fee,Award Costs,University College London Fees,PIN030014,18000,
DFID,CSC,01/12/2017,Tuition Fee,Award Costs,University College London Fees,PIN030015,18000,
DFID,CSC,01/12/2017,Tuition Fee,Award Costs,University College London Fees,PIN030016,18000,
DFID,CSC,01/12/2017,Tuition Fee,Award Costs,University College London Fees,PIN030017,22500,
DFID,CSC,01/12/2017,Tuition Fee,Award Costs,University College London Fees,PIN030018,22500,
DFID,CSC,01/12/2017,Tuition Fee,Award Costs,University College London Fees,PIN030019,22500,
DFID,CSC,01/12/2017,Tuition Fee,Award Costs,University College London Fees,PIN030020,13752,
DFID,CSC,01/12/2017,Tuition Fee,Award Costs,University College London Fees,PIN030021,18000,
DFID,CSC,01/12/2017,Tuition Fee,Award Costs,University College London Fees,PIN030022,18000,
DFID,CSC,01/12/2017,Tuition Fee,Award Costs,University College London Fees,PIN030023,22500,
DFID,CSC,01/12/2017,Tuition Fee,Award Costs,University College London Fees,PIN030024,22500,
DFID,CSC,01/12/2017,Tuition Fee,Award Costs,University College London Fees,PIN030025,18000,
DFID,CSC,01/12/2017,Tuition Fee,Award Costs,University College London Fees,PIN030026,13752,
DFID,CSC,01/12/2017,Tuition Fee,Award Costs,University College London Fees,PIN030027,13752,
DFID,CSC,01/12/2017,Tuition Fee,Award Costs,University College London Fees,PIN030028,18000,
DFID,CSC,01/12/2017,Tuition Fee,Award Costs,University College London Fees,PIN030029,18000,
DFID,CSC,01/12/2017,Tuition Fee,Award Costs,University College London Fees,PIN030030,15208,
DFID,CSC,01/12/2017,Tuition Fee,Award Costs,University College London Fees,PIN030031,15384,
DFID,CSC,01/12/2017,Tuition Fee,Award Costs,University College London Fees,PIN030032,18000,
DFID,CSC,01/12/2017,Award Support Grant,Award Costs,University College London Fees,PIN030033,5000,
DFID,CSC,01/12/2017,Scholar Engagement,Programme Costs,M.J. White Photography,PIN030034,1110,
DFID,CSC,01/12/2017,Scholar Engagement,Programme Costs,Interserve (Facilities Management) Limited,PIN030035,1127.75,
DFID,CSC,01/12/2017,Scholar Engagement,Programme Costs,Interserve (Facilities Management) Limited,PIN030035,5638.75,
DFID,CSC,05/12/2017,Scholar Allowances,Award Costs,Scholar,PIN030039,1818,
DFID,CSC,05/12/2017,Scholar Stipend,Award Costs,Scholar,PIN030039,3238,
DFID,CSC,06/12/2017,Bank Charges,Award Costs,Mastercard Prepaid Management Services Ltd,PIN030067,5.04,
DFID,CSC,06/12/2017,Visa Costs,Award Costs,Scholar,PIN030067,75,
DFID,CSC,06/12/2017,Visa Costs,Award Costs,Scholar,PIN030067,113,
DFID,CSC,06/12/2017,Scholar Allowances,Award Costs,Scholar,PIN030067,220,
DFID,CSC,06/12/2017,Visa Costs,Award Costs,Scholar,PIN030067,96.18,
DFID,CSC,07/12/2017,Bank Charges,Award Costs,Mastercard Prepaid Management Services Ltd,PIN030068,12.29,
DFID,CSC,07/12/2017,Scholar Allowances,Award Costs,Scholar,PIN030068,687,
DFID,CSC,07/12/2017,Scholar Allowances,Award Costs,Scholar,PIN030068,271.14,
DFID,CSC,07/12/2017,Scholar Allowances,Award Costs,Scholar,PIN030068,271.14,
DFID,CSC,08/12/2017,Scholar Engagement,Programme Costs,Royal Over-Seas League,PIN030038,-2544.57,
DFID,CSC,08/12/2017,Scholar Engagement,Programme Costs,Royal Over-Seas League,PIN030038,4927,
DFID,CSC,08/12/2017,Scholar Engagement,Programme Costs,Royal Over-Seas League,PIN030038,181.31,
DFID,CSC,08/12/2017,Scholar Engagement,Programme Costs,Royal Over-Seas League,PIN030038,906.53,
DFID,CSC,08/12/2017,Scholar Engagement,Programme Costs,Royal Over-Seas League,PIN030038,985.4,
DFID,CSC,08/12/2017,Scholar Travel,Award Costs,Diversity Travel,PIN030042,381.7,
DFID,CSC,08/12/2017,Scholar Travel,Award Costs,Diversity Travel,PIN030042,41,
DFID,CSC,08/12/2017,Scholar Travel,Award Costs,Diversity Travel,PIN030042,562,
DFID,CSC,08/12/2017,Scholar Travel,Award Costs,Diversity Travel,PIN030042,1008.07,
DFID,CSC,08/12/2017,Scholar Travel,Award Costs,Diversity Travel,PIN030042,584.5,
DFID,CSC,08/12/2017,Scholar Travel,Award Costs,Diversity Travel,PIN030042,987.67,
DFID,CSC,08/12/2017,Scholar Travel,Award Costs,Diversity Travel,PIN030042,914.18,
DFID,CSC,08/12/2017,Scholar Travel,Award Costs,Diversity Travel,PIN030042,559,
DFID,CSC,08/12/2017,Scholar Travel,Award Costs,Diversity Travel,PIN030042,900.48,
DFID,CSC,08/12/2017,Scholar Travel,Award Costs,Diversity Travel,PIN030042,43.6,
DFID,CSC,08/12/2017,Scholar Travel,Award Costs,Diversity Travel,PIN030042,838.04,
DFID,CSC,08/12/2017,Scholar Travel,Award Costs,Diversity Travel,PIN030042,932.5,
DFID,CSC,08/12/2017,Scholar Travel,Award Costs,Diversity Travel,PIN030042,936.77,
DFID,CSC,08/12/2017,Scholar Travel,Award Costs,Diversity Travel,PIN030042,463.94,
DFID,CSC,08/12/2017,Scholar Travel,Award Costs,Diversity Travel,PIN030042,980.6,
DFID,CSC,08/12/2017,Scholar Travel,Award Costs,Diversity Travel,PIN030043,683.3,
DFID,CSC,08/12/2017,Scholar Travel,Award Costs,Diversity Travel,PIN030043,707.1,
DFID,CSC,08/12/2017,Scholar Travel,Award Costs,Diversity Travel,PIN030043,691.17,
DFID,CSC,08/12/2017,Scholar Travel,Award Costs,Diversity Travel,PIN030043,557.89,
DFID,CSC,08/12/2017,Fieldwork Airfare,Award Costs,Diversity Travel,PIN030043,186,
DFID,CSC,08/12/2017,Scholar Travel,Award Costs,Diversity Travel,PIN030043,727.77,
DFID,CSC,08/12/2017,Scholar Travel,Award Costs,Diversity Travel,PIN030043,543.77,
DFID,CSC,08/12/2017,Scholar Travel,Award Costs,Diversity Travel,PIN030043,-369.17,
DFID,CSC,08/12/2017,Scholar Travel,Award Costs,Diversity Travel,PIN030043,-428.57,
DFID,CSC,08/12/2017,Scholar Travel,Award Costs,Diversity Travel,PIN030043,-53.6,
DFID,CSC,08/12/2017,Scholar Travel,Award Costs,Diversity Travel,PIN030043,479.77,
DFID,CSC,08/12/2017,Scholar Travel,Award Costs,Diversity Travel,PIN030043,912.97,
DFID,CSC,08/12/2017,Scholar Travel,Award Costs,Diversity Travel,PIN030043,407.47,
DFID,CSC,08/12/2017,Scholar Travel,Award Costs,Diversity Travel,PIN030043,-97.09,
DFID,CSC,08/12/2017,Scholar Travel,Award Costs,Diversity Travel,PIN030043,-301.17,
DFID,CSC,08/12/2017,Scholar Travel,Award Costs,Diversity Travel,PIN030043,861.17,
DFID,CSC,08/12/2017,Scholar Travel,Award Costs,Diversity Travel,PIN030043,608.3,
DFID,CSC,08/12/2017,Scholar Travel,Award Costs,Diversity Travel,PIN030043,461.94,
DFID,CSC,08/12/2017,Scholar Travel,Award Costs,Diversity Travel,PIN030043,629.3,
DFID,CSC,08/12/2017,Scholar Travel,Award Costs,Diversity Travel,PIN030043,496.24,
DFID,CSC,08/12/2017,Scholar Travel,Award Costs,Diversity Travel,PIN030043,636,
DFID,CSC,08/12/2017,Scholar Travel,Award Costs,Diversity Travel,PIN030043,676,
DFID,CSC,08/12/2017,Scholar Travel,Award Costs,Diversity Travel,PIN030043,383.8,
DFID,CSC,08/12/2017,Scholar Travel,Award Costs,Diversity Travel,PIN030043,748.27,
DFID,CSC,08/12/2017,Scholar Travel,Award Costs,Diversity Travel,PIN030043,74.5,
DFID,CSC,08/12/2017,Scholar Travel,Award Costs,Diversity Travel,PIN030044,957.98,
DFID,CSC,08/12/2017,Fieldwork Airfare,Award Costs,Diversity Travel,PIN030044,1001.29,
DFID,CSC,08/12/2017,Scholar Travel,Award Costs,Diversity Travel,PIN030044,773.9,
DFID,CSC,08/12/2017,Scholar Travel,Award Costs,Diversity Travel,PIN030044,481.54,
DFID,CSC,08/12/2017,Scholar Travel,Award Costs,Diversity Travel,PIN030044,40.1,
DFID,CSC,08/12/2017,Scholar Engagement,Programme Costs,Commission Chair,PIN030045,59.75,
DFID,CSC,08/12/2017,Stakeholder Engagement,Admin Costs,Commission Chair,PIN030045,1254.18,
DFID,CSC,08/12/2017,Commission Meetings,Admin Costs,Commission Chair,PIN030045,67.1,
DFID,CSC,08/12/2017,Commission Meetings,Admin Costs,Commission Chair,PIN030045,46.65,
DFID,CSC,08/12/2017,Commission Meetings,Admin Costs,Commission Chair,PIN030045,250,
DFID,CSC,08/12/2017,Commission Meetings,Admin Costs,Commission Chair,PIN030045,25.1,
DFID,CSC,08/12/2017,Commission Meetings,Admin Costs,Commission Chair,PIN030045,143.7,
DFID,CSC,08/12/2017,Commission Meetings,Admin Costs,Commission Chair,PIN030045,46.85,
DFID,CSC,08/12/2017,Commission Meetings,Admin Costs,Commission Chair,PIN030045,39.95,
DFID,CSC,08/12/2017,Commission Meetings,Admin Costs,Commission Chair,PIN030045,33,
DFID,CSC,08/12/2017,Commission Meetings,Admin Costs,Commission Chair,PIN030045,110,
DFID,CSC,08/12/2017,Commission Meetings,Admin Costs,Commission Chair,PIN030045,55.1,
DFID,CSC,08/12/2017,Commission Meetings,Admin Costs,Commission Chair,PIN030045,183.05,
DFID,CSC,08/12/2017,Scholar Stipend,Award Costs,Scholar,PIN030047,1169.97,
DFID,CSC,08/12/2017,Scholar Stipend,Award Costs,Scholar,PIN030052,1065,
DFID,CSC,08/12/2017,Scholar Stipend,Award Costs,Scholar,PIN030060,1624.84,
DFID,CSC,08/12/2017,Scholar Stipend,Award Costs,Scholar,PIN030062,2640.5,
DFID,CSC,08/12/2017,Scholar Stipend,Award Costs,Scholar,PIN030065,1309.93,
DFID,CSC,08/12/2017,Bank Charges,Award Costs,Mastercard Prepaid Management Services Ltd,PIN030069,13.94,
DFID,CSC,08/12/2017,Scholar Allowances,Award Costs,Scholar,PIN030069,414,
DFID,CSC,08/12/2017,Scholar Stipend,Award Costs,Scholar,PIN030069,979.72,
DFID,CSC,11/12/2017,Scholar Stipend,Award Costs,Scholar,PIN030072,874.75,
DFID,CSC,15/12/2017,Scholar Engagement,Programme Costs,TFW Printers,PIN030073,170,
DFID,CSC,15/12/2017,Scholar Engagement,Programme Costs,TFW Printers,PIN030073,850,
DFID,CSC,15/12/2017,Reimbursements,Award Costs,Scholar,PIN030074,476.2,
DFID,CSC,15/12/2017,Immigration Health Surcharge,Award Costs,Scholar,PIN030074,150,
DFID,CSC,15/12/2017,Alumni Engagement,Programme Costs,TFW Printers,PIN030080,2860,
DFID,CSC,15/12/2017,Alumni Engagement,Programme Costs,MAHESH DE SILVA,PIN030082,500,
DFID,CSC,15/12/2017,Scholar Engagement,Programme Costs,QUEEN ELIZABETH CENTRE,PIN030084,2845.21,
DFID,CSC,15/12/2017,Scholar Engagement,Programme Costs,QUEEN ELIZABETH CENTRE,PIN030084,14226.05,
DFID,CSC,15/12/2017,Scholar Engagement,Programme Costs,QUEEN ELIZABETH CENTRE,PIN030085,714.08,
DFID,CSC,15/12/2017,Scholar Engagement,Programme Costs,QUEEN ELIZABETH CENTRE,PIN030085,3570.4,
DFID,CSC,15/12/2017,Scholar Engagement,Programme Costs,Cumberland Lodge Enterprises Limited,PIN030086,1768,
DFID,CSC,15/12/2017,Alumni Engagement,Programme Costs,TFW Printers,PIN030087,950,
DFID,CSC,19/12/2017,Scholar Allowances,Award Costs,Kings College London,PIN030973,225,
DFID,CSC,19/12/2017,Scholar Allowances,Award Costs,Kings College London,PIN030973,200,
DFID,CSC,19/12/2017,Scholar Travel,Award Costs,Kings College London,PIN030973,341.57,
DFID,CSC,19/12/2017,Scholar Allowances,Award Costs,Kings College London,PIN030974,225,
DFID,CSC,19/12/2017,Scholar Allowances,Award Costs,Kings College London,PIN030974,200,
DFID,CSC,19/12/2017,Scholar Allowances,Award Costs,Kings College London,PIN030974,200,
DFID,CSC,19/12/2017,Scholar Travel,Award Costs,Kings College London,PIN030974,550.06,
DFID,CSC,19/12/2017,Visa Costs,Award Costs,Kings College London,PIN030975,75.53,
DFID,CSC,19/12/2017,Scholar Travel,Award Costs,Kings College London,PIN030975,941.5,
DFID,CSC,19/12/2017,Scholar Allowances,Award Costs,Kings College London,PIN030976,225,
DFID,CSC,19/12/2017,Scholar Allowances,Award Costs,Kings College London,PIN030976,200,
DFID,CSC,19/12/2017,Scholar Travel,Award Costs,Kings College London,PIN030976,502.97,
DFID,CSC,19/12/2017,Scholar Allowances,Award Costs,Kings College London,PIN030976,350,
DFID,CSC,19/12/2017,Scholar Allowances,Award Costs,Kings College London,PIN030977,225,
DFID,CSC,19/12/2017,Scholar Allowances,Award Costs,Kings College London,PIN030977,200,
DFID,CSC,19/12/2017,Scholar Travel,Award Costs,Kings College London,PIN030977,633.97,
DFID,CSC,19/12/2017,Bank Charges,Award Costs,Mastercard Prepaid Management Services Ltd,PIN030994,5.18,
DFID,CSC,19/12/2017,Visa Costs,Award Costs,Scholar,PIN030994,258.5,
DFID,CSC,19/12/2017,Visa Costs,Award Costs,Scholar,PIN030994,258.5,
DFID,CSC,20/12/2017,Scholar Travel,Award Costs,Diversity Travel,PIN030984,430.5,
DFID,CSC,20/12/2017,Scholar Travel,Award Costs,Diversity Travel,PIN030984,550,
DFID,CSC,20/12/2017,Scholar Travel,Award Costs,Diversity Travel,PIN030984,763.04,
DFID,CSC,20/12/2017,Scholar Travel,Award Costs,Diversity Travel,PIN030984,836.97,
DFID,CSC,20/12/2017,Fieldwork Airfare,Award Costs,Diversity Travel,PIN030984,17.4,
DFID,CSC,20/12/2017,Scholar Travel,Award Costs,Diversity Travel,PIN030984,505.54,
DFID,CSC,20/12/2017,Scholar Travel,Award Costs,Diversity Travel,PIN030984,1049.37,
DFID,CSC,20/12/2017,Scholar Travel,Award Costs,Diversity Travel,PIN030984,690.99,
DFID,CSC,20/12/2017,Fieldwork Airfare,Award Costs,Diversity Travel,PIN030984,709.49,
DFID,CSC,20/12/2017,Scholar Travel,Award Costs,Diversity Travel,PIN030984,575.29,
DFID,CSC,20/12/2017,Scholar Travel,Award Costs,Diversity Travel,PIN030984,615.27,
DFID,CSC,20/12/2017,Scholar Travel,Award Costs,Diversity Travel,PIN030984,668.02,
DFID,CSC,20/12/2017,Scholar Travel,Award Costs,Diversity Travel,PIN030984,105,
DFID,CSC,20/12/2017,Scholar Travel,Award Costs,Diversity Travel,PIN030984,423.07,
DFID,CSC,20/12/2017,Scholar Stipend,Award Costs,Scholar,PIN030986,2227.32,
DFID,CSC,20/12/2017,Scholar Allowances,Award Costs,Scholar,PIN030987,468.82,
DFID,CSC,20/12/2017,Scholar Stipend,Award Costs,Scholar,PIN030987,2180.3,
DFID,CSC,20/12/2017,Scholar Allowances,Award Costs,Scholar,PIN030987,-992.71,
DFID,CSC,20/12/2017,Scholar Allowances,Award Costs,Scholar,PIN030987,468.82,
DFID,CSC,20/12/2017,Scholar Allowances,Award Costs,Scholar,PIN030990,643.49,
DFID,CSC,21/12/2017,Scholar Stipend,Award Costs,Scholar,PIN030089,3195,
DFID,CSC,21/12/2017,Scholar Stipend,Award Costs,Scholar,PIN030090,3188.7,
DFID,CSC,21/12/2017,Scholar Stipend,Award Costs,Scholar,PIN030091,3195,
DFID,CSC,21/12/2017,Scholar Stipend,Award Costs,Scholar,PIN030092,1597.5,
DFID,CSC,21/12/2017,Scholar Stipend,Award Costs,Scholar,PIN030093,549.99,
DFID,CSC,21/12/2017,Scholar Stipend,Award Costs,Scholar,PIN030094,1597.5,
DFID,CSC,21/12/2017,Scholar Stipend,Award Costs,Scholar,PIN030095,3195,
DFID,CSC,21/12/2017,Scholar Stipend,Award Costs,Scholar,PIN030096,3195,
DFID,CSC,21/12/2017,Scholar Stipend,Award Costs,Scholar,PIN030097,3195,
DFID,CSC,21/12/2017,Scholar Stipend,Award Costs,Scholar,PIN030098,3195,
DFID,CSC,21/12/2017,Scholar Stipend,Award Costs,Scholar,PIN030099,3195,
DFID,CSC,21/12/2017,Scholar Stipend,Award Costs,Scholar,PIN030100,3195,
DFID,CSC,21/12/2017,Scholar Stipend,Award Costs,Scholar,PIN030101,3195,
DFID,CSC,21/12/2017,Scholar Stipend,Award Costs,Scholar,PIN030102,3195,
DFID,CSC,21/12/2017,Scholar Stipend,Award Costs,Scholar,PIN030103,3195,
DFID,CSC,21/12/2017,Scholar Stipend,Award Costs,Scholar,PIN030104,6057,
DFID,CSC,21/12/2017,Scholar Stipend,Award Costs,Scholar,PIN030105,1756.53,
DFID,CSC,21/12/2017,Scholar Stipend,Award Costs,Scholar,PIN030106,3195,
DFID,CSC,21/12/2017,Scholar Stipend,Award Costs,Scholar,PIN030107,985.18,
DFID,CSC,21/12/2017,Scholar Stipend,Award Costs,Scholar,PIN030108,1597.5,
DFID,CSC,21/12/2017,Scholar Stipend,Award Costs,Scholar,PIN030109,1597.5,
DFID,CSC,21/12/2017,Scholar Stipend,Award Costs,Scholar,PIN030110,1065,
DFID,CSC,21/12/2017,Scholar Stipend,Award Costs,Scholar,PIN030111,1065,
DFID,CSC,21/12/2017,Scholar Stipend,Award Costs,Scholar,PIN030112,3918,
DFID,CSC,21/12/2017,Scholar Stipend,Award Costs,Scholar,PIN030113,3195,
DFID,CSC,21/12/2017,Scholar Stipend,Award Costs,Scholar,PIN030114,3918,
DFID,CSC,21/12/2017,Scholar Stipend,Award Costs,Scholar,PIN030115,3195,
DFID,CSC,21/12/2017,Scholar Stipend,Award Costs,Scholar,PIN030116,3195,
DFID,CSC,21/12/2017,Scholar Stipend,Award Costs,Scholar,PIN030117,3195,
DFID,CSC,21/12/2017,Scholar Stipend,Award Costs,Scholar,PIN030118,3918,
DFID,CSC,21/12/2017,Scholar Stipend,Award Costs,Scholar,PIN030119,3918,
DFID,CSC,21/12/2017,Scholar Stipend,Award Costs,Scholar,PIN030120,3195,
DFID,CSC,21/12/2017,Scholar Stipend,Award Costs,Scholar,PIN030121,3195,
DFID,CSC,21/12/2017,Scholar Stipend,Award Costs,Scholar,PIN030122,3102.9,
DFID,CSC,21/12/2017,Scholar Stipend,Award Costs,Scholar,PIN030123,2460.21,
DFID,CSC,21/12/2017,Scholar Stipend,Award Costs,Scholar,PIN030124,3918,
DFID,CSC,21/12/2017,Scholar Stipend,Award Costs,Scholar,PIN030125,3195,
DFID,CSC,21/12/2017,Scholar Stipend,Award Costs,Scholar,PIN030126,3195,
DFID,CSC,21/12/2017,Scholar Stipend,Award Costs,Scholar,PIN030127,3195,
DFID,CSC,21/12/2017,Scholar Stipend,Award Costs,Scholar,PIN030128,3918,
DFID,CSC,21/12/2017,Scholar Stipend,Award Costs,Scholar,PIN030129,3195,
DFID,CSC,21/12/2017,Scholar Stipend,Award Costs,Scholar,PIN030130,3195,
DFID,CSC,21/12/2017,Scholar Stipend,Award Costs,Scholar,PIN030131,3329.3,
DFID,CSC,21/12/2017,Scholar Stipend,Award Costs,Scholar,PIN030132,3195,
DFID,CSC,21/12/2017,Scholar Stipend,Award Costs,Scholar,PIN030133,3918,
DFID,CSC,21/12/2017,Scholar Stipend,Award Costs,Scholar,PIN030134,3195,
DFID,CSC,21/12/2017,Scholar Stipend,Award Costs,Scholar,PIN030135,3918,
DFID,CSC,21/12/2017,Scholar Stipend,Award Costs,Scholar,PIN030136,3195,
DFID,CSC,21/12/2017,Scholar Stipend,Award Costs,Scholar,PIN030137,3918,
DFID,CSC,21/12/2017,Scholar Stipend,Award Costs,Scholar,PIN030138,3195,
DFID,CSC,21/12/2017,Scholar Stipend,Award Costs,Scholar,PIN030139,3195,
DFID,CSC,21/12/2017,Scholar Stipend,Award Costs,Scholar,PIN030140,3195,
DFID,CSC,21/12/2017,Scholar Stipend,Award Costs,Scholar,PIN030141,3195,
DFID,CSC,21/12/2017,Scholar Stipend,Award Costs,Scholar,PIN030142,3195,
DFID,CSC,21/12/2017,Scholar Stipend,Award Costs,Scholar,PIN030143,3195,
DFID,CSC,21/12/2017,Scholar Stipend,Award Costs,Scholar,PIN030144,3195,
DFID,CSC,21/12/2017,Scholar Stipend,Award Costs,Scholar,PIN030145,3195,
DFID,CSC,21/12/2017,Scholar Stipend,Award Costs,Scholar,PIN030146,3195,
DFID,CSC,21/12/2017,Scholar Stipend,Award Costs,Scholar,PIN030147,3195,
DFID,CSC,21/12/2017,Scholar Stipend,Award Costs,Scholar,PIN030148,3195,
DFID,CSC,21/12/2017,Scholar Stipend,Award Costs,Scholar,PIN030149,3918,
DFID,CSC,21/12/2017,Scholar Stipend,Award Costs,Scholar,PIN030150,3918,
DFID,CSC,21/12/2017,Scholar Stipend,Award Costs,Scholar,PIN030151,3195,
DFID,CSC,21/12/2017,Scholar Stipend,Award Costs,Scholar,PIN030152,3918,
DFID,CSC,21/12/2017,Scholar Stipend,Award Costs,Scholar,PIN030153,3195,
DFID,CSC,21/12/2017,Scholar Stipend,Award Costs,Scholar,PIN030154,3195,
DFID,CSC,21/12/2017,Scholar Stipend,Award Costs,Scholar,PIN030155,3195,
DFID,CSC,21/12/2017,Scholar Stipend,Award Costs,Scholar,PIN030156,3195,
DFID,CSC,21/12/2017,Scholar Stipend,Award Costs,Scholar,PIN030157,3195,
DFID,CSC,21/12/2017,Scholar Stipend,Award Costs,Scholar,PIN030158,3918,
DFID,CSC,21/12/2017,Scholar Stipend,Award Costs,Scholar,PIN030159,3195,
DFID,CSC,21/12/2017,Scholar Stipend,Award Costs,Scholar,PIN030160,3195,
DFID,CSC,21/12/2017,Scholar Stipend,Award Costs,Scholar,PIN030161,3195,
DFID,CSC,21/12/2017,Scholar Stipend,Award Costs,Scholar,PIN030162,3918,
DFID,CSC,21/12/2017,Scholar Stipend,Award Costs,Scholar,PIN030163,3918,
DFID,CSC,21/12/2017,Scholar Stipend,Award Costs,Scholar,PIN030164,3918,
DFID,CSC,21/12/2017,Scholar Stipend,Award Costs,Scholar,PIN030165,3918,
DFID,CSC,21/12/2017,Scholar Stipend,Award Costs,Scholar,PIN030166,3918,
DFID,CSC,21/12/2017,Scholar Stipend,Award Costs,Scholar,PIN030167,1597.5,
DFID,CSC,21/12/2017,Scholar Stipend,Award Costs,Scholar,PIN030168,1597.5,
DFID,CSC,21/12/2017,Scholar Stipend,Award Costs,Scholar,PIN030169,3195,
DFID,CSC,21/12/2017,Scholar Stipend,Award Costs,Scholar,PIN030170,3195,
DFID,CSC,21/12/2017,Scholar Stipend,Award Costs,Scholar,PIN030171,3195,
DFID,CSC,21/12/2017,Scholar Stipend,Award Costs,Scholar,PIN030172,3195,
DFID,CSC,21/12/2017,Scholar Stipend,Award Costs,Scholar,PIN030173,3144.71,
DFID,CSC,21/12/2017,Scholar Stipend,Award Costs,Scholar,PIN030174,3195,
DFID,CSC,21/12/2017,Scholar Stipend,Award Costs,Scholar,PIN030175,3195,
DFID,CSC,21/12/2017,Scholar Stipend,Award Costs,Scholar,PIN030176,1597.5,
DFID,CSC,21/12/2017,Scholar Stipend,Award Costs,Scholar,PIN030177,1572.35,
DFID,CSC,21/12/2017,Scholar Stipend,Award Costs,Scholar,PIN030178,1597.5,
DFID,CSC,21/12/2017,Scholar Stipend,Award Costs,Scholar,PIN030179,1597.5,
DFID,CSC,21/12/2017,Scholar Stipend,Award Costs,Scholar,PIN030180,1432.39,
DFID,CSC,21/12/2017,Scholar Stipend,Award Costs,Scholar,PIN030181,1597.5,
DFID,CSC,21/12/2017,Scholar Stipend,Award Costs,Scholar,PIN030182,1885.25,
DFID,CSC,21/12/2017,Scholar Stipend,Award Costs,Scholar,PIN030183,3195,
DFID,CSC,21/12/2017,Scholar Stipend,Award Costs,Scholar,PIN030184,3195,
DFID,CSC,21/12/2017,Scholar Stipend,Award Costs,Scholar,PIN030185,3195,
DFID,CSC,21/12/2017,Scholar Stipend,Award Costs,Scholar,PIN030186,1065,
DFID,CSC,21/12/2017,Scholar Stipend,Award Costs,Scholar,PIN030187,3195,
DFID,CSC,21/12/2017,Scholar Stipend,Award Costs,Scholar,PIN030188,3195,
DFID,CSC,21/12/2017,Scholar Stipend,Award Costs,Scholar,PIN030189,3195,
DFID,CSC,21/12/2017,Scholar Stipend,Award Costs,Scholar,PIN030190,3195,
DFID,CSC,21/12/2017,Scholar Stipend,Award Costs,Scholar,PIN030191,3918,
DFID,CSC,21/12/2017,Scholar Stipend,Award Costs,Scholar,PIN030192,3195,
DFID,CSC,21/12/2017,Scholar Stipend,Award Costs,Scholar,PIN030193,3195,
DFID,CSC,21/12/2017,Scholar Stipend,Award Costs,Scholar,PIN030194,3195,
DFID,CSC,21/12/2017,Scholar Stipend,Award Costs,Scholar,PIN030195,3195,
DFID,CSC,21/12/2017,Scholar Stipend,Award Costs,Scholar,PIN030196,3195,
DFID,CSC,21/12/2017,Scholar Stipend,Award Costs,Scholar,PIN030197,3195,
DFID,CSC,21/12/2017,Scholar Stipend,Award Costs,Scholar,PIN030198,1597.5,
DFID,CSC,21/12/2017,Scholar Stipend,Award Costs,Scholar,PIN030199,3195,
DFID,CSC,21/12/2017,Scholar Stipend,Award Costs,Scholar,PIN030200,3195,
DFID,CSC,21/12/2017,Scholar Stipend,Award Costs,Scholar,PIN030201,3195,
DFID,CSC,21/12/2017,Scholar Stipend,Award Costs,Scholar,PIN030202,3195,
DFID,CSC,21/12/2017,Scholar Stipend,Award Costs,Scholar,PIN030203,4881,
DFID,CSC,21/12/2017,Scholar Stipend,Award Costs,Scholar,PIN030204,4881,
DFID,CSC,21/12/2017,Scholar Stipend,Award Costs,Scholar,PIN030205,4881,
DFID,CSC,21/12/2017,Scholar Stipend,Award Costs,Scholar,PIN030206,3307.45,
DFID,CSC,21/12/2017,Scholar Stipend,Award Costs,Scholar,PIN030207,1597.5,
DFID,CSC,21/12/2017,Scholar Stipend,Award Costs,Scholar,PIN030208,1834.69,
DFID,CSC,21/12/2017,Scholar Stipend,Award Costs,Scholar,PIN030209,1597.5,
DFID,CSC,21/12/2017,Scholar Stipend,Award Costs,Scholar,PIN030210,3195,
DFID,CSC,21/12/2017,Scholar Stipend,Award Costs,Scholar,PIN030211,3195,
DFID,CSC,21/12/2017,Scholar Stipend,Award Costs,Scholar,PIN030212,3195,
DFID,CSC,21/12/2017,Scholar Stipend,Award Costs,Scholar,PIN030213,3195,
DFID,CSC,21/12/2017,Scholar Stipend,Award Costs,Scholar,PIN030214,769.77,
DFID,CSC,21/12/2017,Scholar Stipend,Award Costs,Scholar,PIN030215,3195,
DFID,CSC,21/12/2017,Scholar Stipend,Award Costs,Scholar,PIN030216,3195,
DFID,CSC,21/12/2017,Scholar Stipend,Award Costs,Scholar,PIN030217,3195,
DFID,CSC,21/12/2017,Scholar Stipend,Award Costs,Scholar,PIN030218,3918,
DFID,CSC,21/12/2017,Scholar Stipend,Award Costs,Scholar,PIN030219,3195,
DFID,CSC,21/12/2017,Scholar Stipend,Award Costs,Scholar,PIN030220,3195,
DFID,CSC,21/12/2017,Scholar Stipend,Award Costs,Scholar,PIN030221,3918,
DFID,CSC,21/12/2017,Scholar Stipend,Award Costs,Scholar,PIN030223,3195,
DFID,CSC,21/12/2017,Scholar Stipend,Award Costs,Scholar,PIN030224,3195,
DFID,CSC,21/12/2017,Scholar Stipend,Award Costs,Scholar,PIN030225,3918,
DFID,CSC,21/12/2017,Scholar Stipend,Award Costs,Scholar,PIN030226,3195,
DFID,CSC,21/12/2017,Scholar Stipend,Award Costs,Scholar,PIN030227,3195,
DFID,CSC,21/12/2017,Scholar Stipend,Award Costs,Scholar,PIN030228,3195,
DFID,CSC,21/12/2017,Scholar Stipend,Award Costs,Scholar,PIN030229,3195,
DFID,CSC,21/12/2017,Scholar Stipend,Award Costs,Scholar,PIN030230,3918,
DFID,CSC,21/12/2017,Scholar Stipend,Award Costs,Scholar,PIN030231,3918,
DFID,CSC,21/12/2017,Scholar Stipend,Award Costs,Scholar,PIN030232,3195,
DFID,CSC,21/12/2017,Scholar Stipend,Award Costs,Scholar,PIN030234,3195,
DFID,CSC,21/12/2017,Scholar Stipend,Award Costs,Scholar,PIN030235,3195,
DFID,CSC,21/12/2017,Scholar Stipend,Award Costs,Scholar,PIN030236,3195,
DFID,CSC,21/12/2017,Scholar Stipend,Award Costs,Scholar,PIN030237,3195,
DFID,CSC,21/12/2017,Scholar Stipend,Award Costs,Scholar,PIN030238,2164.99,
DFID,CSC,21/12/2017,Scholar Stipend,Award Costs,Scholar,PIN030239,1597.5,
DFID,CSC,21/12/2017,Scholar Stipend,Award Costs,Scholar,PIN030240,1756.53,
DFID,CSC,21/12/2017,Scholar Stipend,Award Costs,Scholar,PIN030241,1597.5,
DFID,CSC,21/12/2017,Scholar Stipend,Award Costs,Scholar,PIN030242,1959,
DFID,CSC,21/12/2017,Scholar Stipend,Award Costs,Scholar,PIN030243,1597.5,
DFID,CSC,21/12/2017,Scholar Stipend,Award Costs,Scholar,PIN030244,1597.5,
DFID,CSC,21/12/2017,Scholar Stipend,Award Costs,Scholar,PIN030245,3195,
DFID,CSC,21/12/2017,Scholar Stipend,Award Costs,Scholar,PIN030246,3195,
DFID,CSC,21/12/2017,Scholar Stipend,Award Costs,Scholar,PIN030247,2460.21,
DFID,CSC,21/12/2017,Scholar Stipend,Award Costs,Scholar,PIN030248,3195,
DFID,CSC,21/12/2017,Scholar Stipend,Award Costs,Scholar,PIN030249,3195,
DFID,CSC,21/12/2017,Scholar Stipend,Award Costs,Scholar,PIN030250,2600.17,
DFID,CSC,21/12/2017,Scholar Stipend,Award Costs,Scholar,PIN030251,3195,
DFID,CSC,21/12/2017,Scholar Stipend,Award Costs,Scholar,PIN030252,2215.28,
DFID,CSC,21/12/2017,Scholar Stipend,Award Costs,Scholar,PIN030253,2670.15,
DFID,CSC,21/12/2017,Scholar Stipend,Award Costs,Scholar,PIN030254,3918,
DFID,CSC,21/12/2017,Scholar Stipend,Award Costs,Scholar,PIN030255,3195,
DFID,CSC,21/12/2017,Scholar Stipend,Award Costs,Scholar,PIN030256,3195,
DFID,CSC,21/12/2017,Scholar Stipend,Award Costs,Scholar,PIN030257,3918,
DFID,CSC,21/12/2017,Scholar Stipend,Award Costs,Scholar,PIN030258,3195,
DFID,CSC,21/12/2017,Scholar Stipend,Award Costs,Scholar,PIN030259,3195,
DFID,CSC,21/12/2017,Scholar Stipend,Award Costs,Scholar,PIN030260,3195,
DFID,CSC,21/12/2017,Scholar Stipend,Award Costs,Scholar,PIN030261,3195,
DFID,CSC,21/12/2017,Scholar Stipend,Award Costs,Scholar,PIN030262,3918,
DFID,CSC,21/12/2017,Scholar Stipend,Award Costs,Scholar,PIN030263,3918,
DFID,CSC,21/12/2017,Scholar Stipend,Award Costs,Scholar,PIN030264,3918,
DFID,CSC,21/12/2017,Scholar Stipend,Award Costs,Scholar,PIN030265,3918,
DFID,CSC,21/12/2017,Scholar Stipend,Award Costs,Scholar,PIN030266,3195,
DFID,CSC,21/12/2017,Scholar Stipend,Award Costs,Scholar,PIN030267,3918,
DFID,CSC,21/12/2017,Scholar Stipend,Award Costs,Scholar,PIN030268,3195,
DFID,CSC,21/12/2017,Scholar Stipend,Award Costs,Scholar,PIN030269,3918,
DFID,CSC,21/12/2017,Scholar Stipend,Award Costs,Scholar,PIN030270,3918,
DFID,CSC,21/12/2017,Scholar Stipend,Award Costs,Scholar,PIN030271,3195,
DFID,CSC,21/12/2017,Scholar Stipend,Award Costs,Scholar,PIN030272,3195,
DFID,CSC,21/12/2017,Scholar Stipend,Award Costs,Scholar,PIN030273,3195,
DFID,CSC,21/12/2017,Scholar Stipend,Award Costs,Scholar,PIN030274,1432.39,
DFID,CSC,21/12/2017,Scholar Stipend,Award Costs,Scholar,PIN030275,2145.3,
DFID,CSC,21/12/2017,Scholar Stipend,Award Costs,Scholar,PIN030276,3918,
DFID,CSC,21/12/2017,Scholar Stipend,Award Costs,Scholar,PIN030277,3195,
DFID,CSC,21/12/2017,Scholar Stipend,Award Costs,Scholar,PIN030278,3195,
DFID,CSC,21/12/2017,Scholar Stipend,Award Costs,Scholar,PIN030279,3195,
DFID,CSC,21/12/2017,Scholar Stipend,Award Costs,Scholar,PIN030281,3195,
DFID,CSC,21/12/2017,Scholar Stipend,Award Costs,Scholar,PIN030282,3195,
DFID,CSC,21/12/2017,Scholar Stipend,Award Costs,Scholar,PIN030283,2145.3,
DFID,CSC,21/12/2017,Scholar Stipend,Award Costs,Scholar,PIN030284,1597.5,
DFID,CSC,21/12/2017,Scholar Stipend,Award Costs,Scholar,PIN030285,1597.5,
DFID,CSC,21/12/2017,Scholar Stipend,Award Costs,Scholar,PIN030286,1597.5,
DFID,CSC,21/12/2017,Scholar Stipend,Award Costs,Scholar,PIN030287,1597.5,
DFID,CSC,21/12/2017,Scholar Stipend,Award Costs,Scholar,PIN030288,3195,
DFID,CSC,21/12/2017,Scholar Stipend,Award Costs,Scholar,PIN030289,3195,
DFID,CSC,21/12/2017,Scholar Stipend,Award Costs,Scholar,PIN030290,3195,
DFID,CSC,21/12/2017,Scholar Stipend,Award Costs,Scholar,PIN030291,1014.7,
DFID,CSC,21/12/2017,Scholar Stipend,Award Costs,Scholar,PIN030292,2759.7,
DFID,CSC,21/12/2017,Scholar Stipend,Award Costs,Scholar,PIN030293,3195,
DFID,CSC,21/12/2017,Scholar Stipend,Award Costs,Scholar,PIN030294,3195,
DFID,CSC,21/12/2017,Scholar Stipend,Award Costs,Scholar,PIN030295,3195,
DFID,CSC,21/12/2017,Scholar Stipend,Award Costs,Scholar,PIN030296,3195,
DFID,CSC,21/12/2017,Scholar Stipend,Award Costs,Scholar,PIN030297,3195,
DFID,CSC,21/12/2017,Scholar Stipend,Award Costs,Scholar,PIN030298,3918,
DFID,CSC,21/12/2017,Scholar Stipend,Award Costs,Scholar,PIN030299,3195,
DFID,CSC,21/12/2017,Scholar Stipend,Award Costs,Scholar,PIN030300,3195,
DFID,CSC,21/12/2017,Scholar Stipend,Award Costs,Scholar,PIN030301,3195,
DFID,CSC,21/12/2017,Scholar Stipend,Award Costs,Scholar,PIN030302,3195,
DFID,CSC,21/12/2017,Scholar Stipend,Award Costs,Scholar,PIN030303,3195,
DFID,CSC,21/12/2017,Scholar Stipend,Award Costs,Scholar,PIN030304,3195,
DFID,CSC,21/12/2017,Scholar Stipend,Award Costs,Scholar,PIN030305,3195,
DFID,CSC,21/12/2017,Scholar Stipend,Award Costs,Scholar,PIN030306,3195,
DFID,CSC,21/12/2017,Scholar Stipend,Award Costs,Scholar,PIN030307,3195,
DFID,CSC,21/12/2017,Scholar Stipend,Award Costs,Scholar,PIN030308,3918,
DFID,CSC,21/12/2017,Scholar Stipend,Award Costs,Scholar,PIN030309,"3,195.00",
DFID,CSC,21/12/2017,Scholar Stipend,Award Costs,Scholar,PIN030310,3195,
DFID,CSC,21/12/2017,Scholar Stipend,Award Costs,Scholar,PIN030311,3195,
DFID,CSC,21/12/2017,Scholar Stipend,Award Costs,Scholar,PIN030312,3195,
DFID,CSC,21/12/2017,Scholar Stipend,Award Costs,Scholar,PIN030314,3195,
DFID,CSC,21/12/2017,Scholar Stipend,Award Costs,Scholar,PIN030315,3918,
DFID,CSC,21/12/2017,Scholar Stipend,Award Costs,Scholar,PIN030316,3195,
DFID,CSC,21/12/2017,Scholar Stipend,Award Costs,Scholar,PIN030317,3918,
DFID,CSC,21/12/2017,Scholar Stipend,Award Costs,Scholar,PIN030318,3195,
DFID,CSC,21/12/2017,Scholar Stipend,Award Costs,Scholar,PIN030319,3918,
DFID,CSC,21/12/2017,Scholar Stipend,Award Costs,Scholar,PIN030320,3195,
DFID,CSC,21/12/2017,Scholar Stipend,Award Costs,Scholar,PIN030321,3195,
DFID,CSC,21/12/2017,Scholar Stipend,Award Costs,Scholar,PIN030322,3195,
DFID,CSC,21/12/2017,Scholar Stipend,Award Costs,Scholar,PIN030323,3195,
DFID,CSC,21/12/2017,Scholar Stipend,Award Costs,Scholar,PIN030324,3918,
DFID,CSC,21/12/2017,Scholar Stipend,Award Costs,Scholar,PIN030325,3195,
DFID,CSC,21/12/2017,Scholar Stipend,Award Costs,Scholar,PIN030326,3195,
DFID,CSC,21/12/2017,Scholar Stipend,Award Costs,Scholar,PIN030327,3195,
DFID,CSC,21/12/2017,Scholar Stipend,Award Costs,Scholar,PIN030328,3195,
DFID,CSC,21/12/2017,Scholar Stipend,Award Costs,Scholar,PIN030329,1597.5,
DFID,CSC,21/12/2017,Scholar Stipend,Award Costs,Scholar,PIN030330,1362.41,
DFID,CSC,21/12/2017,Scholar Stipend,Award Costs,Scholar,PIN030331,3195,
DFID,CSC,21/12/2017,Scholar Stipend,Award Costs,Scholar,PIN030332,3195,
DFID,CSC,21/12/2017,Scholar Stipend,Award Costs,Scholar,PIN030333,2110.31,
DFID,CSC,21/12/2017,Scholar Stipend,Award Costs,Scholar,PIN030334,3918,
DFID,CSC,21/12/2017,Scholar Stipend,Award Costs,Scholar,PIN030335,3195,
DFID,CSC,21/12/2017,Scholar Stipend,Award Costs,Scholar,PIN030336,3195,
DFID,CSC,21/12/2017,Scholar Stipend,Award Costs,Scholar,PIN030337,3195,
DFID,CSC,21/12/2017,Scholar Stipend,Award Costs,Scholar,PIN030338,3195,
DFID,CSC,21/12/2017,Scholar Stipend,Award Costs,Scholar,PIN030339,3195,
DFID,CSC,21/12/2017,Scholar Stipend,Award Costs,Scholar,PIN030340,1292.43,
DFID,CSC,21/12/2017,Scholar Stipend,Award Costs,Scholar,PIN030341,1597.5,
DFID,CSC,21/12/2017,Scholar Stipend,Award Costs,Scholar,PIN030342,3195,
DFID,CSC,21/12/2017,Scholar Stipend,Award Costs,Scholar,PIN030343,3195,
DFID,CSC,21/12/2017,Scholar Stipend,Award Costs,Scholar,PIN030344,3195,
DFID,CSC,21/12/2017,Scholar Stipend,Award Costs,Scholar,PIN030345,3195,
DFID,CSC,21/12/2017,Scholar Stipend,Award Costs,Scholar,PIN030346,3195,
DFID,CSC,21/12/2017,Scholar Stipend,Award Costs,Scholar,PIN030347,3195,
DFID,CSC,21/12/2017,Scholar Stipend,Award Costs,Scholar,PIN030348,"1,959.00",
DFID,CSC,21/12/2017,Scholar Stipend,Award Costs,Scholar,PIN030349,1597.5,
DFID,CSC,21/12/2017,Scholar Stipend,Award Costs,Scholar,PIN030350,1597.5,
DFID,CSC,21/12/2017,Scholar Stipend,Award Costs,Scholar,PIN030351,1597.5,
DFID,CSC,21/12/2017,Scholar Stipend,Award Costs,Scholar,PIN030352,1065,
DFID,CSC,21/12/2017,Scholar Stipend,Award Costs,Scholar,PIN030353,532.5,
DFID,CSC,21/12/2017,Scholar Stipend,Award Costs,Scholar,PIN030354,3195,
DFID,CSC,21/12/2017,Scholar Stipend,Award Costs,Scholar,PIN030355,3195,
DFID,CSC,21/12/2017,Scholar Stipend,Award Costs,Scholar,PIN030356,3195,
DFID,CSC,21/12/2017,Scholar Stipend,Award Costs,Scholar,PIN030357,3195,
DFID,CSC,21/12/2017,Scholar Stipend,Award Costs,Scholar,PIN030358,3195,
DFID,CSC,21/12/2017,Scholar Stipend,Award Costs,Scholar,PIN030359,3195,
DFID,CSC,21/12/2017,Scholar Stipend,Award Costs,Scholar,PIN030360,3195,
DFID,CSC,21/12/2017,Scholar Stipend,Award Costs,Scholar,PIN030361,3195,
DFID,CSC,21/12/2017,Scholar Stipend,Award Costs,Scholar,PIN030362,2604.56,
DFID,CSC,21/12/2017,Scholar Stipend,Award Costs,Scholar,PIN030363,3918,
DFID,CSC,21/12/2017,Scholar Stipend,Award Costs,Scholar,PIN030364,3195,
DFID,CSC,21/12/2017,Scholar Stipend,Award Costs,Scholar,PIN030365,3918,
DFID,CSC,21/12/2017,Scholar Stipend,Award Costs,Scholar,PIN030366,3195,
DFID,CSC,21/12/2017,Scholar Stipend,Award Costs,Scholar,PIN030367,3195,
DFID,CSC,21/12/2017,Scholar Stipend,Award Costs,Scholar,PIN030368,3918,
DFID,CSC,21/12/2017,Scholar Stipend,Award Costs,Scholar,PIN030369,3195,
DFID,CSC,21/12/2017,Scholar Stipend,Award Costs,Scholar,PIN030370,3195,
DFID,CSC,21/12/2017,Scholar Stipend,Award Costs,Scholar,PIN030371,3195,
DFID,CSC,21/12/2017,Scholar Stipend,Award Costs,Scholar,PIN030372,3918,
DFID,CSC,21/12/2017,Scholar Stipend,Award Costs,Scholar,PIN030373,3918,
DFID,CSC,21/12/2017,Scholar Stipend,Award Costs,Scholar,PIN030374,3195,
DFID,CSC,21/12/2017,Scholar Stipend,Award Costs,Scholar,PIN030375,3195,
DFID,CSC,21/12/2017,Scholar Stipend,Award Costs,Scholar,PIN030376,3195,
DFID,CSC,21/12/2017,Scholar Stipend,Award Costs,Scholar,PIN030377,3195,
DFID,CSC,21/12/2017,Scholar Stipend,Award Costs,Scholar,PIN030378,3918,
DFID,CSC,21/12/2017,Scholar Stipend,Award Costs,Scholar,PIN030379,3195,
DFID,CSC,21/12/2017,Scholar Stipend,Award Costs,Scholar,PIN030380,699.79,
DFID,CSC,21/12/2017,Scholar Stipend,Award Costs,Scholar,PIN030381,1959,
DFID,CSC,21/12/2017,Scholar Stipend,Award Costs,Scholar,PIN030382,3195,
DFID,CSC,21/12/2017,Scholar Stipend,Award Costs,Scholar,PIN030383,3195,
DFID,CSC,21/12/2017,Scholar Stipend,Award Costs,Scholar,PIN030384,3195,
DFID,CSC,21/12/2017,Scholar Stipend,Award Costs,Scholar,PIN030385,3918,
DFID,CSC,21/12/2017,Scholar Stipend,Award Costs,Scholar,PIN030386,"3,195.00",
DFID,CSC,21/12/2017,Scholar Stipend,Award Costs,Scholar,PIN030387,3195,
DFID,CSC,21/12/2017,Scholar Stipend,Award Costs,Scholar,PIN030388,"1,597.50",
DFID,CSC,21/12/2017,Scholar Stipend,Award Costs,Scholar,PIN030389,3195,
DFID,CSC,21/12/2017,Scholar Stipend,Award Costs,Scholar,PIN030390,"3,195.00",
DFID,CSC,21/12/2017,Scholar Stipend,Award Costs,Scholar,PIN030391,3918,
DFID,CSC,21/12/2017,Scholar Stipend,Award Costs,Scholar,PIN030392,3195,
DFID,CSC,21/12/2017,Scholar Stipend,Award Costs,Scholar,PIN030393,3195,
DFID,CSC,21/12/2017,Scholar Stipend,Award Costs,Scholar,PIN030394,3195,
DFID,CSC,21/12/2017,Scholar Stipend,Award Costs,Scholar,PIN030395,1597.5,
DFID,CSC,21/12/2017,Scholar Stipend,Award Costs,Scholar,PIN030396,1597.5,
DFID,CSC,21/12/2017,Scholar Stipend,Award Costs,Scholar,PIN030397,1554.86,
DFID,CSC,21/12/2017,Scholar Stipend,Award Costs,Scholar,PIN030398,3195,
DFID,CSC,21/12/2017,Scholar Stipend,Award Costs,Scholar,PIN030399,3918,
DFID,CSC,21/12/2017,Scholar Stipend,Award Costs,Scholar,PIN030400,3195,
DFID,CSC,21/12/2017,Scholar Stipend,Award Costs,Scholar,PIN030401,3195,
DFID,CSC,21/12/2017,Scholar Stipend,Award Costs,Scholar,PIN030402,3195,
DFID,CSC,21/12/2017,Scholar Stipend,Award Costs,Scholar,PIN030403,3195,
DFID,CSC,21/12/2017,Scholar Stipend,Award Costs,Scholar,PIN030404,3195,
DFID,CSC,21/12/2017,Scholar Stipend,Award Costs,Scholar,PIN030405,3195,
DFID,CSC,21/12/2017,Scholar Stipend,Award Costs,Scholar,PIN030406,3195,
DFID,CSC,21/12/2017,Scholar Stipend,Award Costs,Scholar,PIN030407,3195,
DFID,CSC,21/12/2017,Scholar Stipend,Award Costs,Scholar,PIN030408,3195,
DFID,CSC,21/12/2017,Scholar Stipend,Award Costs,Scholar,PIN030409,3195,
DFID,CSC,21/12/2017,Scholar Stipend,Award Costs,Scholar,PIN030410,4881,
DFID,CSC,21/12/2017,Scholar Stipend,Award Costs,Scholar,PIN030411,6057,
DFID,CSC,21/12/2017,Scholar Stipend,Award Costs,Scholar,PIN030412,4881,
DFID,CSC,21/12/2017,Scholar Stipend,Award Costs,Scholar,PIN030413,4881,
DFID,CSC,21/12/2017,Scholar Stipend,Award Costs,Scholar,PIN030414,1520.54,
DFID,CSC,21/12/2017,Scholar Stipend,Award Costs,Scholar,PIN030415,3195,
DFID,CSC,21/12/2017,Scholar Stipend,Award Costs,Scholar,PIN030416,3195,
DFID,CSC,21/12/2017,Scholar Stipend,Award Costs,Scholar,PIN030417,3195,
DFID,CSC,21/12/2017,Scholar Stipend,Award Costs,Scholar,PIN030418,3195,
DFID,CSC,21/12/2017,Scholar Stipend,Award Costs,Scholar,PIN030419,3195,
DFID,CSC,21/12/2017,Scholar Stipend,Award Costs,Scholar,PIN030420,3195,
DFID,CSC,21/12/2017,Scholar Stipend,Award Costs,Scholar,PIN030421,1274.94,
DFID,CSC,21/12/2017,Scholar Stipend,Award Costs,Scholar,PIN030422,1484.88,
DFID,CSC,21/12/2017,Scholar Stipend,Award Costs,Scholar,PIN030423,1554.86,
DFID,CSC,21/12/2017,Scholar Stipend,Award Costs,Scholar,PIN030424,1597.5,
DFID,CSC,21/12/2017,Scholar Stipend,Award Costs,Scholar,PIN030425,1537.36,
DFID,CSC,21/12/2017,Scholar Stipend,Award Costs,Scholar,PIN030426,3195,
DFID,CSC,21/12/2017,Scholar Stipend,Award Costs,Scholar,PIN030427,3195,
DFID,CSC,21/12/2017,Scholar Stipend,Award Costs,Scholar,PIN030428,3195,
DFID,CSC,21/12/2017,Scholar Stipend,Award Costs,Scholar,PIN030429,2320.25,
DFID,CSC,21/12/2017,Scholar Stipend,Award Costs,Scholar,PIN030430,2460.21,
DFID,CSC,21/12/2017,Scholar Stipend,Award Costs,Scholar,PIN030431,3195,
DFID,CSC,21/12/2017,Scholar Stipend,Award Costs,Scholar,PIN030432,3918,
DFID,CSC,21/12/2017,Scholar Stipend,Award Costs,Scholar,PIN030433,3195,
DFID,CSC,21/12/2017,Scholar Stipend,Award Costs,Scholar,PIN030434,3195,
DFID,CSC,21/12/2017,Scholar Stipend,Award Costs,Scholar,PIN030435,1065,
DFID,CSC,21/12/2017,Scholar Stipend,Award Costs,Scholar,PIN030436,3195,
DFID,CSC,21/12/2017,Scholar Stipend,Award Costs,Scholar,PIN030437,3195,
DFID,CSC,21/12/2017,Scholar Stipend,Award Costs,Scholar,PIN030438,3195,
DFID,CSC,21/12/2017,Scholar Stipend,Award Costs,Scholar,PIN030439,3195,
DFID,CSC,21/12/2017,Scholar Stipend,Award Costs,Scholar,PIN030440,3195,
DFID,CSC,21/12/2017,Scholar Stipend,Award Costs,Scholar,PIN030441,3195,
DFID,CSC,21/12/2017,Scholar Stipend,Award Costs,Scholar,PIN030442,3195,
DFID,CSC,21/12/2017,Scholar Stipend,Award Costs,Scholar,PIN030443,3195,
DFID,CSC,21/12/2017,Scholar Stipend,Award Costs,Scholar,PIN030444,3360.3,
DFID,CSC,21/12/2017,Scholar Stipend,Award Costs,Scholar,PIN030445,3195,
DFID,CSC,21/12/2017,Scholar Stipend,Award Costs,Scholar,PIN030446,3195,
DFID,CSC,21/12/2017,Scholar Stipend,Award Costs,Scholar,PIN030447,3195,
DFID,CSC,21/12/2017,Scholar Stipend,Award Costs,Scholar,PIN030448,3195,
DFID,CSC,21/12/2017,Scholar Stipend,Award Costs,Scholar,PIN030449,3918,
DFID,CSC,21/12/2017,Scholar Stipend,Award Costs,Scholar,PIN030450,3195,
DFID,CSC,21/12/2017,Scholar Stipend,Award Costs,Scholar,PIN030451,1274.94,
DFID,CSC,21/12/2017,Scholar Stipend,Award Costs,Scholar,PIN030452,643.61,
DFID,CSC,21/12/2017,Scholar Stipend,Award Costs,Scholar,PIN030453,3918,
DFID,CSC,21/12/2017,Scholar Stipend,Award Costs,Scholar,PIN030454,3195,
DFID,CSC,21/12/2017,Scholar Stipend,Award Costs,Scholar,PIN030455,3195,
DFID,CSC,21/12/2017,Scholar Stipend,Award Costs,Scholar,PIN030456,3195,
DFID,CSC,21/12/2017,Scholar Stipend,Award Costs,Scholar,PIN030457,3195,
DFID,CSC,21/12/2017,Scholar Stipend,Award Costs,Scholar,PIN030458,3195,
DFID,CSC,21/12/2017,Scholar Stipend,Award Costs,Scholar,PIN030459,3195,
DFID,CSC,21/12/2017,Scholar Stipend,Award Costs,Scholar,PIN030460,3195,
DFID,CSC,21/12/2017,Scholar Stipend,Award Costs,Scholar,PIN030461,4881,
DFID,CSC,21/12/2017,Scholar Stipend,Award Costs,Scholar,PIN030462,1065,
DFID,CSC,21/12/2017,Scholar Stipend,Award Costs,Scholar,PIN030463,3195,
DFID,CSC,21/12/2017,Scholar Stipend,Award Costs,Scholar,PIN030464,3195,
DFID,CSC,21/12/2017,Scholar Stipend,Award Costs,Scholar,PIN030465,3195,
DFID,CSC,21/12/2017,Scholar Stipend,Award Costs,Scholar,PIN030466,3195,
DFID,CSC,21/12/2017,Scholar Stipend,Award Costs,Scholar,PIN030467,3195,
DFID,CSC,21/12/2017,Scholar Stipend,Award Costs,Scholar,PIN030468,1597.5,
DFID,CSC,21/12/2017,Scholar Stipend,Award Costs,Scholar,PIN030469,1959,
DFID,CSC,21/12/2017,Scholar Stipend,Award Costs,Scholar,PIN030470,1597.5,
DFID,CSC,21/12/2017,Scholar Stipend,Award Costs,Scholar,PIN030471,3195,
DFID,CSC,21/12/2017,Scholar Stipend,Award Costs,Scholar,PIN030472,3195,
DFID,CSC,21/12/2017,Scholar Stipend,Award Costs,Scholar,PIN030473,3918,
DFID,CSC,21/12/2017,Scholar Stipend,Award Costs,Scholar,PIN030474,3918,
DFID,CSC,21/12/2017,Scholar Stipend,Award Costs,Scholar,PIN030475,3195,
DFID,CSC,21/12/2017,Scholar Stipend,Award Costs,Scholar,PIN030476,3918,
DFID,CSC,21/12/2017,Scholar Stipend,Award Costs,Scholar,PIN030477,3195,
DFID,CSC,21/12/2017,Scholar Stipend,Award Costs,Scholar,PIN030478,3195,
DFID,CSC,21/12/2017,Scholar Stipend,Award Costs,Scholar,PIN030479,3195,
DFID,CSC,21/12/2017,Scholar Stipend,Award Costs,Scholar,PIN030480,2565.18,
DFID,CSC,21/12/2017,Scholar Stipend,Award Costs,Scholar,PIN030481,3195,
DFID,CSC,21/12/2017,Scholar Stipend,Award Costs,Scholar,PIN030482,3918,
DFID,CSC,21/12/2017,Scholar Stipend,Award Costs,Scholar,PIN030483,1597.5,
DFID,CSC,21/12/2017,Scholar Stipend,Award Costs,Scholar,PIN030484,3195,
DFID,CSC,21/12/2017,Scholar Stipend,Award Costs,Scholar,PIN030485,"3,195.00",
DFID,CSC,21/12/2017,Scholar Stipend,Award Costs,Scholar,PIN030486,3195,
DFID,CSC,21/12/2017,Scholar Stipend,Award Costs,Scholar,PIN030487,3195,
DFID,CSC,21/12/2017,Scholar Stipend,Award Costs,Scholar,PIN030488,"3,195.00",
DFID,CSC,21/12/2017,Scholar Stipend,Award Costs,Scholar,PIN030489,3918,
DFID,CSC,21/12/2017,Scholar Stipend,Award Costs,Scholar,PIN030490,"3,195.00",
DFID,CSC,21/12/2017,Scholar Stipend,Award Costs,Scholar,PIN030491,3195,
DFID,CSC,21/12/2017,Scholar Stipend,Award Costs,Scholar,PIN030492,3195,
DFID,CSC,21/12/2017,Scholar Stipend,Award Costs,Scholar,PIN030493,3195,
DFID,CSC,21/12/2017,Scholar Stipend,Award Costs,Scholar,PIN030494,1432.39,
DFID,CSC,21/12/2017,Scholar Stipend,Award Costs,Scholar,PIN030495,1597.5,
DFID,CSC,21/12/2017,Scholar Stipend,Award Costs,Scholar,PIN030496,1502.37,
DFID,CSC,21/12/2017,Scholar Stipend,Award Costs,Scholar,PIN030497,1597.5,
DFID,CSC,21/12/2017,Scholar Stipend,Award Costs,Scholar,PIN030498,3918,
DFID,CSC,21/12/2017,Scholar Stipend,Award Costs,Scholar,PIN030499,3195,
DFID,CSC,21/12/2017,Scholar Stipend,Award Costs,Scholar,PIN030500,3195,
DFID,CSC,21/12/2017,Scholar Stipend,Award Costs,Scholar,PIN030501,3918,
DFID,CSC,21/12/2017,Scholar Stipend,Award Costs,Scholar,PIN030502,3918,
DFID,CSC,21/12/2017,Scholar Stipend,Award Costs,Scholar,PIN030503,3195,
DFID,CSC,21/12/2017,Scholar Stipend,Award Costs,Scholar,PIN030504,3195,
DFID,CSC,21/12/2017,Scholar Stipend,Award Costs,Scholar,PIN030505,3918,
DFID,CSC,21/12/2017,Scholar Stipend,Award Costs,Scholar,PIN030506,3195,
DFID,CSC,21/12/2017,Scholar Stipend,Award Costs,Scholar,PIN030507,3195,
DFID,CSC,21/12/2017,Scholar Stipend,Award Costs,Scholar,PIN030508,1597.5,
DFID,CSC,21/12/2017,Scholar Stipend,Award Costs,Scholar,PIN030509,1432.39,
DFID,CSC,21/12/2017,Scholar Stipend,Award Costs,Scholar,PIN030510,3195,
DFID,CSC,21/12/2017,Scholar Stipend,Award Costs,Scholar,PIN030511,3195,
DFID,CSC,21/12/2017,Scholar Stipend,Award Costs,Scholar,PIN030512,1597.5,
DFID,CSC,21/12/2017,Scholar Stipend,Award Costs,Scholar,PIN030513,1065,
DFID,CSC,21/12/2017,Scholar Stipend,Award Costs,Scholar,PIN030514,3195,
DFID,CSC,21/12/2017,Scholar Stipend,Award Costs,Scholar,PIN030515,3195,
DFID,CSC,21/12/2017,Scholar Stipend,Award Costs,Scholar,PIN030516,3195,
DFID,CSC,21/12/2017,Scholar Stipend,Award Costs,Scholar,PIN030517,3195,
DFID,CSC,21/12/2017,Scholar Stipend,Award Costs,Scholar,PIN030518,3195,
DFID,CSC,21/12/2017,Scholar Stipend,Award Costs,Scholar,PIN030519,3195,
DFID,CSC,21/12/2017,Scholar Stipend,Award Costs,Scholar,PIN030520,1065,
DFID,CSC,21/12/2017,Scholar Stipend,Award Costs,Scholar,PIN030522,3195,
DFID,CSC,21/12/2017,Scholar Stipend,Award Costs,Scholar,PIN030523,"3,195.00",
DFID,CSC,21/12/2017,Scholar Stipend,Award Costs,Scholar,PIN030524,3195,
DFID,CSC,21/12/2017,Scholar Stipend,Award Costs,Scholar,PIN030525,"3,195.00",
DFID,CSC,21/12/2017,Scholar Stipend,Award Costs,Scholar,PIN030526,3195,
DFID,CSC,21/12/2017,Scholar Stipend,Award Costs,Scholar,PIN030527,1065,
DFID,CSC,21/12/2017,Scholar Stipend,Award Costs,Scholar,PIN030528,3195,
DFID,CSC,21/12/2017,Scholar Stipend,Award Costs,Scholar,PIN030529,3195,
DFID,CSC,21/12/2017,Scholar Stipend,Award Costs,Scholar,PIN030530,3918,
DFID,CSC,21/12/2017,Scholar Stipend,Award Costs,Scholar,PIN030531,3195,
DFID,CSC,21/12/2017,Scholar Stipend,Award Costs,Scholar,PIN030532,3195,
DFID,CSC,21/12/2017,Scholar Stipend,Award Costs,Scholar,PIN030533,3195,
DFID,CSC,21/12/2017,Scholar Stipend,Award Costs,Scholar,PIN030534,3195,
DFID,CSC,21/12/2017,Scholar Stipend,Award Costs,Scholar,PIN030535,1597.5,
DFID,CSC,21/12/2017,Scholar Stipend,Award Costs,Scholar,PIN030537,1432.39,
DFID,CSC,21/12/2017,Scholar Stipend,Award Costs,Scholar,PIN030538,3195,
DFID,CSC,21/12/2017,Scholar Stipend,Award Costs,Scholar,PIN030539,3195,
DFID,CSC,21/12/2017,Scholar Stipend,Award Costs,Scholar,PIN030540,3195,
DFID,CSC,21/12/2017,Scholar Stipend,Award Costs,Scholar,PIN030541,"3,195.00",
DFID,CSC,21/12/2017,Scholar Stipend,Award Costs,Scholar,PIN030542,3195,
DFID,CSC,21/12/2017,Scholar Stipend,Award Costs,Scholar,PIN030543,4881,
DFID,CSC,21/12/2017,Scholar Stipend,Award Costs,Scholar,PIN030544,1597.5,
DFID,CSC,21/12/2017,Scholar Stipend,Award Costs,Scholar,PIN030545,3195,
DFID,CSC,21/12/2017,Scholar Stipend,Award Costs,Scholar,PIN030546,2635.16,
DFID,CSC,21/12/2017,Scholar Stipend,Award Costs,Scholar,PIN030547,3195,
DFID,CSC,21/12/2017,Scholar Stipend,Award Costs,Scholar,PIN030548,3195,
DFID,CSC,21/12/2017,Scholar Stipend,Award Costs,Scholar,PIN030549,3195,
DFID,CSC,21/12/2017,Scholar Stipend,Award Costs,Scholar,PIN030550,3918,
DFID,CSC,21/12/2017,Scholar Stipend,Award Costs,Scholar,PIN030551,3195,
DFID,CSC,21/12/2017,Scholar Stipend,Award Costs,Scholar,PIN030553,643.61,
DFID,CSC,21/12/2017,Scholar Stipend,Award Costs,Scholar,PIN030554,3195,
DFID,CSC,21/12/2017,Scholar Stipend,Award Costs,Scholar,PIN030555,3195,
DFID,CSC,21/12/2017,Scholar Stipend,Award Costs,Scholar,PIN030556,3918,
DFID,CSC,21/12/2017,Scholar Stipend,Award Costs,Scholar,PIN030557,3918,
DFID,CSC,21/12/2017,Scholar Stipend,Award Costs,Scholar,PIN030558,3195,
DFID,CSC,21/12/2017,Scholar Stipend,Award Costs,Scholar,PIN030559,3918,
DFID,CSC,21/12/2017,Scholar Stipend,Award Costs,Scholar,PIN030560,3195,
DFID,CSC,21/12/2017,Scholar Stipend,Award Costs,Scholar,PIN030561,3918,
DFID,CSC,21/12/2017,Scholar Stipend,Award Costs,Scholar,PIN030562,3195,
DFID,CSC,21/12/2017,Scholar Stipend,Award Costs,Scholar,PIN030563,3918,
DFID,CSC,21/12/2017,Scholar Stipend,Award Costs,Scholar,PIN030564,3195,
DFID,CSC,21/12/2017,Scholar Stipend,Award Costs,Scholar,PIN030565,3195,
DFID,CSC,21/12/2017,Scholar Stipend,Award Costs,Scholar,PIN030566,1065,
DFID,CSC,21/12/2017,Scholar Stipend,Award Costs,Scholar,PIN030567,3195,
DFID,CSC,21/12/2017,Scholar Stipend,Award Costs,Scholar,PIN030568,2009.72,
DFID,CSC,21/12/2017,Scholar Stipend,Award Costs,Scholar,PIN030569,3195,
DFID,CSC,21/12/2017,Scholar Stipend,Award Costs,Scholar,PIN030570,3641.78,
DFID,CSC,21/12/2017,Scholar Stipend,Award Costs,Scholar,PIN030571,1537.36,
DFID,CSC,21/12/2017,Scholar Stipend,Award Costs,Scholar,PIN030572,1747.19,
DFID,CSC,21/12/2017,Scholar Stipend,Award Costs,Scholar,PIN030573,1065,
DFID,CSC,21/12/2017,Scholar Stipend,Award Costs,Scholar,PIN030574,1597.5,
DFID,CSC,21/12/2017,Scholar Stipend,Award Costs,Scholar,PIN030575,1597.5,
DFID,CSC,21/12/2017,Scholar Stipend,Award Costs,Scholar,PIN030576,1756.53,
DFID,CSC,21/12/2017,Scholar Stipend,Award Costs,Scholar,PIN030577,2495.2,
DFID,CSC,21/12/2017,Scholar Stipend,Award Costs,Scholar,PIN030578,3195,
DFID,CSC,21/12/2017,Scholar Stipend,Award Costs,Scholar,PIN030579,3195,
DFID,CSC,21/12/2017,Scholar Stipend,Award Costs,Scholar,PIN030580,3195,
DFID,CSC,21/12/2017,Scholar Stipend,Award Costs,Scholar,PIN030581,1065,
DFID,CSC,21/12/2017,Scholar Stipend,Award Costs,Scholar,PIN030582,3195,
DFID,CSC,21/12/2017,Scholar Stipend,Award Costs,Scholar,PIN030583,3195,
DFID,CSC,21/12/2017,Scholar Stipend,Award Costs,Scholar,PIN030584,3195,
DFID,CSC,21/12/2017,Scholar Stipend,Award Costs,Scholar,PIN030585,1799.44,
DFID,CSC,21/12/2017,Scholar Stipend,Award Costs,Scholar,PIN030586,3195,
DFID,CSC,21/12/2017,Scholar Stipend,Award Costs,Scholar,PIN030587,2969.76,
DFID,CSC,21/12/2017,Scholar Stipend,Award Costs,Scholar,PIN030588,3918,
DFID,CSC,21/12/2017,Scholar Stipend,Award Costs,Scholar,PIN030589,3918,
DFID,CSC,21/12/2017,Scholar Stipend,Award Costs,Scholar,PIN030590,3195,
DFID,CSC,21/12/2017,Scholar Stipend,Award Costs,Scholar,PIN030591,3195,
DFID,CSC,21/12/2017,Scholar Stipend,Award Costs,Scholar,PIN030592,1014.7,
DFID,CSC,21/12/2017,Scholar Stipend,Award Costs,Scholar,PIN030593,3195,
DFID,CSC,21/12/2017,Scholar Stipend,Award Costs,Scholar,PIN030594,3195,
DFID,CSC,21/12/2017,Scholar Stipend,Award Costs,Scholar,PIN030595,3195,
DFID,CSC,21/12/2017,Scholar Stipend,Award Costs,Scholar,PIN030596,3195,
DFID,CSC,21/12/2017,Scholar Stipend,Award Costs,Scholar,PIN030597,3918,
DFID,CSC,21/12/2017,Scholar Stipend,Award Costs,Scholar,PIN030599,3918,
DFID,CSC,21/12/2017,Scholar Stipend,Award Costs,Scholar,PIN030600,3195,
DFID,CSC,21/12/2017,Scholar Stipend,Award Costs,Scholar,PIN030601,3195,
DFID,CSC,21/12/2017,Scholar Stipend,Award Costs,Scholar,PIN030602,3918,
DFID,CSC,21/12/2017,Scholar Stipend,Award Costs,Scholar,PIN030603,3195,
DFID,CSC,21/12/2017,Scholar Stipend,Award Costs,Scholar,PIN030604,3195,
DFID,CSC,21/12/2017,Scholar Stipend,Award Costs,Scholar,PIN030605,3918,
DFID,CSC,21/12/2017,Scholar Stipend,Award Costs,Scholar,PIN030606,3918,
DFID,CSC,21/12/2017,Scholar Stipend,Award Costs,Scholar,PIN030607,3195,
DFID,CSC,21/12/2017,Scholar Stipend,Award Costs,Scholar,PIN030608,3195,
DFID,CSC,21/12/2017,Scholar Stipend,Award Costs,Scholar,PIN030609,3195,
DFID,CSC,21/12/2017,Scholar Stipend,Award Costs,Scholar,PIN030610,3918,
DFID,CSC,21/12/2017,Scholar Stipend,Award Costs,Scholar,PIN030611,3195,
DFID,CSC,21/12/2017,Scholar Stipend,Award Costs,Scholar,PIN030612,3195,
DFID,CSC,21/12/2017,Scholar Stipend,Award Costs,Scholar,PIN030613,3195,
DFID,CSC,21/12/2017,Scholar Stipend,Award Costs,Scholar,PIN030614,1554.86,
DFID,CSC,21/12/2017,Scholar Stipend,Award Costs,Scholar,PIN030615,1362.41,
DFID,CSC,21/12/2017,Scholar Stipend,Award Costs,Scholar,PIN030616,3195,
DFID,CSC,21/12/2017,Scholar Stipend,Award Costs,Scholar,PIN030617,3195,
DFID,CSC,21/12/2017,Scholar Stipend,Award Costs,Scholar,PIN030618,3195,
DFID,CSC,21/12/2017,Scholar Stipend,Award Costs,Scholar,PIN030619,3918,
DFID,CSC,21/12/2017,Scholar Stipend,Award Costs,Scholar,PIN030620,3195,
DFID,CSC,21/12/2017,Scholar Stipend,Award Costs,Scholar,PIN030621,3195,
DFID,CSC,21/12/2017,Scholar Stipend,Award Costs,Scholar,PIN030622,1597.5,
DFID,CSC,21/12/2017,Scholar Stipend,Award Costs,Scholar,PIN030623,1554.86,
DFID,CSC,21/12/2017,Scholar Stipend,Award Costs,Scholar,PIN030624,1554.86,
DFID,CSC,21/12/2017,Scholar Stipend,Award Costs,Scholar,PIN030625,1887.26,
DFID,CSC,21/12/2017,Scholar Stipend,Award Costs,Scholar,PIN030626,1597.5,
DFID,CSC,21/12/2017,Scholar Stipend,Award Costs,Scholar,PIN030627,3195,
DFID,CSC,21/12/2017,Scholar Stipend,Award Costs,Scholar,PIN030628,3195,
DFID,CSC,21/12/2017,Scholar Stipend,Award Costs,Scholar,PIN030629,3195,
DFID,CSC,21/12/2017,Scholar Stipend,Award Costs,Scholar,PIN030630,3918,
DFID,CSC,21/12/2017,Scholar Stipend,Award Costs,Scholar,PIN030631,3195,
DFID,CSC,21/12/2017,Scholar Stipend,Award Costs,Scholar,PIN030632,3195,
DFID,CSC,21/12/2017,Scholar Stipend,Award Costs,Scholar,PIN030633,3195,
DFID,CSC,21/12/2017,Scholar Stipend,Award Costs,Scholar,PIN030634,3195,
DFID,CSC,21/12/2017,Scholar Stipend,Award Costs,Scholar,PIN030635,3195,
DFID,CSC,21/12/2017,Scholar Stipend,Award Costs,Scholar,PIN030636,3195,
DFID,CSC,21/12/2017,Scholar Stipend,Award Costs,Scholar,PIN030637,3918,
DFID,CSC,21/12/2017,Scholar Stipend,Award Costs,Scholar,PIN030638,3195,
DFID,CSC,21/12/2017,Scholar Stipend,Award Costs,Scholar,PIN030639,3195,
DFID,CSC,21/12/2017,Scholar Stipend,Award Costs,Scholar,PIN030640,3195,
DFID,CSC,21/12/2017,Scholar Stipend,Award Costs,Scholar,PIN030641,3195,
DFID,CSC,21/12/2017,Scholar Stipend,Award Costs,Scholar,PIN030642,3195,
DFID,CSC,21/12/2017,Scholar Stipend,Award Costs,Scholar,PIN030643,3195,
DFID,CSC,21/12/2017,Scholar Stipend,Award Costs,Scholar,PIN030644,3195,
DFID,CSC,21/12/2017,Scholar Stipend,Award Costs,Scholar,PIN030645,3918,
DFID,CSC,21/12/2017,Scholar Stipend,Award Costs,Scholar,PIN030646,3195,
DFID,CSC,21/12/2017,Scholar Stipend,Award Costs,Scholar,PIN030647,3918,
DFID,CSC,21/12/2017,Scholar Stipend,Award Costs,Scholar,PIN030648,3918,
DFID,CSC,21/12/2017,Scholar Stipend,Award Costs,Scholar,PIN030649,3195,
DFID,CSC,21/12/2017,Scholar Advances,Award Costs,Scholar,PIN030650,1300,
DFID,CSC,21/12/2017,Advances Repayments,Award Costs,Scholar,PIN030655,-1000,
DFID,CSC,21/12/2017,Scholar Allowances,Award Costs,Scholar,PIN030661,687,
DFID,CSC,21/12/2017,Scholar Allowances,Award Costs,Scholar,PIN030662,1023,
DFID,CSC,21/12/2017,Scholar Allowances,Award Costs,Scholar,PIN030663,687,
DFID,CSC,21/12/2017,Scholar Allowances,Award Costs,Scholar,PIN030664,687,
DFID,CSC,21/12/2017,Scholar Allowances,Award Costs,Scholar,PIN030666,687,
DFID,CSC,21/12/2017,Scholar Allowances,Award Costs,Scholar,PIN030667,687,
DFID,CSC,21/12/2017,Scholar Allowances,Award Costs,Scholar,PIN030668,687,
DFID,CSC,21/12/2017,Scholar Allowances,Award Costs,Scholar,PIN030669,1023,
DFID,CSC,21/12/2017,Scholar Allowances,Award Costs,Scholar,PIN030670,687,
DFID,CSC,21/12/2017,Scholar Allowances,Award Costs,Scholar,PIN030671,687,
DFID,CSC,21/12/2017,Scholar Allowances,Award Costs,Scholar,PIN030672,687,
DFID,CSC,21/12/2017,Scholar Allowances,Award Costs,Scholar,PIN030673,687,
DFID,CSC,21/12/2017,Scholar Allowances,Award Costs,Scholar,PIN030674,687,
DFID,CSC,21/12/2017,Scholar Allowances,Award Costs,Scholar,PIN030675,687,
DFID,CSC,21/12/2017,Scholar Allowances,Award Costs,Scholar,PIN030676,687,
DFID,CSC,21/12/2017,Scholar Allowances,Award Costs,Scholar,PIN030677,687,
DFID,CSC,21/12/2017,Scholar Allowances,Award Costs,Scholar,PIN030678,687,
DFID,CSC,21/12/2017,Scholar Allowances,Award Costs,Scholar,PIN030679,1023,
DFID,CSC,21/12/2017,Scholar Allowances,Award Costs,Scholar,PIN030680,1707,
DFID,CSC,21/12/2017,Scholar Allowances,Award Costs,Scholar,PIN030681,687,
DFID,CSC,21/12/2017,Scholar Allowances,Award Costs,Scholar,PIN030682,687,
DFID,CSC,21/12/2017,Scholar Allowances,Award Costs,Scholar,PIN030683,1023,
DFID,CSC,21/12/2017,Scholar Allowances,Award Costs,Scholar,PIN030684,687,
DFID,CSC,21/12/2017,Scholar Allowances,Award Costs,Scholar,PIN030685,1023,
DFID,CSC,21/12/2017,Scholar Allowances,Award Costs,Scholar,PIN030687,1023,
DFID,CSC,21/12/2017,Scholar Allowances,Award Costs,Scholar,PIN030689,1023,
DFID,CSC,21/12/2017,Scholar Allowances,Award Costs,Scholar,PIN030690,1023,
DFID,CSC,21/12/2017,Scholar Allowances,Award Costs,Scholar,PIN030691,687,
DFID,CSC,21/12/2017,Scholar Allowances,Award Costs,Scholar,PIN030692,687,
DFID,CSC,21/12/2017,Scholar Allowances,Award Costs,Scholar,PIN030693,687,
DFID,CSC,21/12/2017,Scholar Allowances,Award Costs,Scholar,PIN030694,687,
DFID,CSC,21/12/2017,Scholar Allowances,Award Costs,Scholar,PIN030695,687,
DFID,CSC,21/12/2017,Scholar Allowances,Award Costs,Scholar,PIN030696,1023,
DFID,CSC,21/12/2017,Scholar Allowances,Award Costs,Scholar,PIN030697,1359,
DFID,CSC,21/12/2017,Scholar Allowances,Award Costs,Scholar,PIN030698,1023,
DFID,CSC,21/12/2017,Scholar Allowances,Award Costs,Scholar,PIN030699,1359,
DFID,CSC,21/12/2017,Scholar Allowances,Award Costs,Scholar,PIN030700,687,
DFID,CSC,21/12/2017,Scholar Allowances,Award Costs,Scholar,PIN030701,1023,
DFID,CSC,21/12/2017,Scholar Allowances,Award Costs,Scholar,PIN030702,687,
DFID,CSC,21/12/2017,Scholar Allowances,Award Costs,Scholar,PIN030703,687,
DFID,CSC,21/12/2017,Scholar Allowances,Award Costs,Scholar,PIN030705,1359,
DFID,CSC,21/12/2017,Scholar Allowances,Award Costs,Scholar,PIN030706,1359,
DFID,CSC,21/12/2017,Scholar Allowances,Award Costs,Scholar,PIN030707,1371,
DFID,CSC,21/12/2017,Scholar Allowances,Award Costs,Scholar,PIN030708,1359,
DFID,CSC,21/12/2017,Scholar Allowances,Award Costs,Scholar,PIN030709,687,
DFID,CSC,21/12/2017,Scholar Allowances,Award Costs,Scholar,PIN030710,1023,
DFID,CSC,21/12/2017,Scholar Allowances,Award Costs,Scholar,PIN030711,1371,
DFID,CSC,21/12/2017,Scholar Allowances,Award Costs,Scholar,PIN030712,1023,
DFID,CSC,21/12/2017,Scholar Allowances,Award Costs,Scholar,PIN030713,687,
DFID,CSC,21/12/2017,Scholar Allowances,Award Costs,Scholar,PIN030714,1023,
DFID,CSC,21/12/2017,Scholar Allowances,Award Costs,Scholar,PIN030715,687,
DFID,CSC,21/12/2017,Scholar Allowances,Award Costs,Scholar,PIN030716,687,
DFID,CSC,21/12/2017,Scholar Allowances,Award Costs,Scholar,PIN030717,687,
DFID,CSC,21/12/2017,Scholar Allowances,Award Costs,Scholar,PIN030718,687,
DFID,CSC,21/12/2017,Scholar Allowances,Award Costs,Scholar,PIN030719,687,
DFID,CSC,21/12/2017,Scholar Allowances,Award Costs,Scholar,PIN030720,687,
DFID,CSC,21/12/2017,Scholar Allowances,Award Costs,Scholar,PIN030721,1359,
DFID,CSC,21/12/2017,Scholar Allowances,Award Costs,Scholar,PIN030723,1359,
DFID,CSC,21/12/2017,Scholar Allowances,Award Costs,Scholar,PIN030724,687,
DFID,CSC,21/12/2017,Scholar Allowances,Award Costs,Scholar,PIN030725,1359,
DFID,CSC,21/12/2017,Scholar Allowances,Award Costs,Scholar,PIN030726,1023,
DFID,CSC,21/12/2017,Scholar Allowances,Award Costs,Scholar,PIN030727,687,
DFID,CSC,21/12/2017,Scholar Allowances,Award Costs,Scholar,PIN030728,1023,
DFID,CSC,21/12/2017,Scholar Allowances,Award Costs,Scholar,PIN030729,1023,
DFID,CSC,21/12/2017,Scholar Allowances,Award Costs,Scholar,PIN030730,1023,
DFID,CSC,21/12/2017,Scholar Allowances,Award Costs,Scholar,PIN030731,687,
DFID,CSC,21/12/2017,Scholar Allowances,Award Costs,Scholar,PIN030732,1371,
DFID,CSC,21/12/2017,Scholar Allowances,Award Costs,Scholar,PIN030733,687,
DFID,CSC,21/12/2017,Scholar Allowances,Award Costs,Scholar,PIN030734,687,
DFID,CSC,21/12/2017,Scholar Allowances,Award Costs,Scholar,PIN030736,1359,
DFID,CSC,21/12/2017,Scholar Allowances,Award Costs,Scholar,PIN030737,687,
DFID,CSC,21/12/2017,Scholar Allowances,Award Costs,Scholar,PIN030738,1359,
DFID,CSC,21/12/2017,Scholar Allowances,Award Costs,Scholar,PIN030739,687,
DFID,CSC,21/12/2017,Scholar Allowances,Award Costs,Scholar,PIN030740,1371,
DFID,CSC,21/12/2017,Scholar Allowances,Award Costs,Scholar,PIN030742,2043,
DFID,CSC,21/12/2017,Scholar Allowances,Award Costs,Scholar,PIN030743,687,
DFID,CSC,21/12/2017,Scholar Allowances,Award Costs,Scholar,PIN030744,1359,
DFID,CSC,21/12/2017,Scholar Allowances,Award Costs,Scholar,PIN030745,1023,
DFID,CSC,21/12/2017,Scholar Allowances,Award Costs,Scholar,PIN030746,687,
DFID,CSC,21/12/2017,Scholar Allowances,Award Costs,Scholar,PIN030748,1359,
DFID,CSC,21/12/2017,Scholar Allowances,Award Costs,Scholar,PIN030749,687,
DFID,CSC,21/12/2017,Scholar Allowances,Award Costs,Scholar,PIN030750,687,
DFID,CSC,21/12/2017,Scholar Allowances,Award Costs,Scholar,PIN030751,1023,
DFID,CSC,21/12/2017,Scholar Allowances,Award Costs,Scholar,PIN030752,1023,
DFID,CSC,21/12/2017,Scholar Allowances,Award Costs,Scholar,PIN030753,1023,
DFID,CSC,21/12/2017,Scholar Allowances,Award Costs,Scholar,PIN030754,687,
DFID,CSC,21/12/2017,Scholar Allowances,Award Costs,Scholar,PIN030755,687,
DFID,CSC,21/12/2017,Scholar Allowances,Award Costs,Scholar,PIN030756,687,
DFID,CSC,21/12/2017,Scholar Allowances,Award Costs,Scholar,PIN030757,687,
DFID,CSC,21/12/2017,Scholar Allowances,Award Costs,Scholar,PIN030758,687,
DFID,CSC,21/12/2017,Scholar Allowances,Award Costs,Scholar,PIN030759,687,
DFID,CSC,21/12/2017,Scholar Allowances,Award Costs,Scholar,PIN030761,687,
DFID,CSC,21/12/2017,Scholar Allowances,Award Costs,Scholar,PIN030762,687,
DFID,CSC,21/12/2017,Scholar Allowances,Award Costs,Scholar,PIN030763,687,
DFID,CSC,21/12/2017,Scholar Allowances,Award Costs,Scholar,PIN030764,687,
DFID,CSC,21/12/2017,Scholar Allowances,Award Costs,Scholar,PIN030765,687,
DFID,CSC,21/12/2017,Scholar Allowances,Award Costs,Scholar,PIN030766,687,
DFID,CSC,21/12/2017,Scholar Allowances,Award Costs,Scholar,PIN030767,687,
DFID,CSC,21/12/2017,Scholar Allowances,Award Costs,Scholar,PIN030768,687,
DFID,CSC,21/12/2017,Scholar Allowances,Award Costs,Scholar,PIN030769,687,
DFID,CSC,21/12/2017,Scholar Allowances,Award Costs,Scholar,PIN030770,687,
DFID,CSC,21/12/2017,Scholar Allowances,Award Costs,Scholar,PIN030771,687,
DFID,CSC,21/12/2017,Scholar Allowances,Award Costs,Scholar,PIN030772,687,
DFID,CSC,21/12/2017,Scholar Allowances,Award Costs,Scholar,PIN030773,687,
DFID,CSC,21/12/2017,Scholar Allowances,Award Costs,Scholar,PIN030774,687,
DFID,CSC,21/12/2017,Scholar Allowances,Award Costs,Scholar,PIN030775,687,
DFID,CSC,21/12/2017,Scholar Allowances,Award Costs,Scholar,PIN030776,687,
DFID,CSC,21/12/2017,Scholar Allowances,Award Costs,Scholar,PIN030777,687,
DFID,CSC,21/12/2017,Scholar Allowances,Award Costs,Scholar,PIN030778,687,
DFID,CSC,21/12/2017,Scholar Allowances,Award Costs,Scholar,PIN030779,687,
DFID,CSC,21/12/2017,Scholar Allowances,Award Costs,Scholar,PIN030780,687,
DFID,CSC,21/12/2017,Scholar Allowances,Award Costs,Scholar,PIN030781,687,
DFID,CSC,21/12/2017,Scholar Allowances,Award Costs,Scholar,PIN030782,687,
DFID,CSC,21/12/2017,Scholar Allowances,Award Costs,Scholar,PIN030783,687,
DFID,CSC,21/12/2017,Scholar Allowances,Award Costs,Scholar,PIN030784,687,
DFID,CSC,21/12/2017,Scholar Allowances,Award Costs,Scholar,PIN030785,687,
DFID,CSC,21/12/2017,Scholar Allowances,Award Costs,Scholar,PIN030786,687,
DFID,CSC,21/12/2017,Scholar Allowances,Award Costs,Scholar,PIN030787,687,
DFID,CSC,21/12/2017,Scholar Allowances,Award Costs,Scholar,PIN030788,687,
DFID,CSC,21/12/2017,Scholar Allowances,Award Costs,Scholar,PIN030789,687,
DFID,CSC,21/12/2017,Scholar Allowances,Award Costs,Scholar,PIN030791,687,
DFID,CSC,21/12/2017,Scholar Allowances,Award Costs,Scholar,PIN030792,687,
DFID,CSC,21/12/2017,Scholar Allowances,Award Costs,Scholar,PIN030793,687,
DFID,CSC,21/12/2017,Scholar Allowances,Award Costs,Scholar,PIN030794,687,
DFID,CSC,21/12/2017,Scholar Allowances,Award Costs,Scholar,PIN030795,687,
DFID,CSC,21/12/2017,Scholar Allowances,Award Costs,Scholar,PIN030796,687,
DFID,CSC,21/12/2017,Scholar Allowances,Award Costs,Scholar,PIN030797,687,
DFID,CSC,21/12/2017,Scholar Allowances,Award Costs,Scholar,PIN030798,687,
DFID,CSC,21/12/2017,Scholar Allowances,Award Costs,Scholar,PIN030799,687,
DFID,CSC,21/12/2017,Scholar Allowances,Award Costs,Scholar,PIN030800,687,
DFID,CSC,21/12/2017,Scholar Allowances,Award Costs,Scholar,PIN030801,687,
DFID,CSC,21/12/2017,Scholar Allowances,Award Costs,Scholar,PIN030802,687,
DFID,CSC,21/12/2017,Scholar Allowances,Award Costs,Scholar,PIN030803,687,
DFID,CSC,21/12/2017,Scholar Allowances,Award Costs,Scholar,PIN030804,687,
DFID,CSC,21/12/2017,Scholar Allowances,Award Costs,Scholar,PIN030805,687,
DFID,CSC,21/12/2017,Scholar Allowances,Award Costs,Scholar,PIN030806,687,
DFID,CSC,21/12/2017,Scholar Allowances,Award Costs,Scholar,PIN030808,687,
DFID,CSC,21/12/2017,Scholar Allowances,Award Costs,Scholar,PIN030809,687,
DFID,CSC,21/12/2017,Scholar Allowances,Award Costs,Scholar,PIN030810,687,
DFID,CSC,21/12/2017,Scholar Allowances,Award Costs,Scholar,PIN030811,687,
DFID,CSC,21/12/2017,Scholar Allowances,Award Costs,Scholar,PIN030812,687,
DFID,CSC,21/12/2017,Scholar Allowances,Award Costs,Scholar,PIN030813,687,
DFID,CSC,21/12/2017,Scholar Allowances,Award Costs,Scholar,PIN030814,687,
DFID,CSC,21/12/2017,Scholar Allowances,Award Costs,Scholar,PIN030815,687,
DFID,CSC,21/12/2017,Scholar Allowances,Award Costs,Scholar,PIN030816,687,
DFID,CSC,21/12/2017,Scholar Allowances,Award Costs,Scholar,PIN030817,687,
DFID,CSC,21/12/2017,Scholar Allowances,Award Costs,Scholar,PIN030818,687,
DFID,CSC,21/12/2017,Scholar Allowances,Award Costs,Scholar,PIN030819,687,
DFID,CSC,21/12/2017,Scholar Allowances,Award Costs,Scholar,PIN030820,687,
DFID,CSC,21/12/2017,Scholar Allowances,Award Costs,Scholar,PIN030821,687,
DFID,CSC,21/12/2017,Scholar Allowances,Award Costs,Scholar,PIN030822,687,
DFID,CSC,21/12/2017,Scholar Allowances,Award Costs,Scholar,PIN030823,687,
DFID,CSC,21/12/2017,Scholar Allowances,Award Costs,Scholar,PIN030824,687,
DFID,CSC,21/12/2017,Scholar Allowances,Award Costs,Scholar,PIN030825,687,
DFID,CSC,21/12/2017,Scholar Allowances,Award Costs,Scholar,PIN030826,687,
DFID,CSC,21/12/2017,Scholar Allowances,Award Costs,Scholar,PIN030827,687,
DFID,CSC,21/12/2017,Scholar Allowances,Award Costs,Scholar,PIN030828,687,
DFID,CSC,21/12/2017,Scholar Allowances,Award Costs,Scholar,PIN030829,687,
DFID,CSC,21/12/2017,Scholar Allowances,Award Costs,Scholar,PIN030830,687,
DFID,CSC,21/12/2017,Scholar Allowances,Award Costs,Scholar,PIN030831,687,
DFID,CSC,21/12/2017,Scholar Allowances,Award Costs,Scholar,PIN030832,687,
DFID,CSC,21/12/2017,Scholar Allowances,Award Costs,Scholar,PIN030833,687,
DFID,CSC,21/12/2017,Scholar Allowances,Award Costs,Scholar,PIN030835,687,
DFID,CSC,21/12/2017,Scholar Allowances,Award Costs,Scholar,PIN030836,687,
DFID,CSC,21/12/2017,Scholar Allowances,Award Costs,Scholar,PIN030837,687,
DFID,CSC,21/12/2017,Scholar Allowances,Award Costs,Scholar,PIN030838,687,
DFID,CSC,21/12/2017,Scholar Allowances,Award Costs,Scholar,PIN030840,687,
DFID,CSC,21/12/2017,Scholar Allowances,Award Costs,Scholar,PIN030841,687,
DFID,CSC,21/12/2017,Scholar Allowances,Award Costs,Scholar,PIN030842,687,
DFID,CSC,21/12/2017,Scholar Allowances,Award Costs,Scholar,PIN030843,687,
DFID,CSC,21/12/2017,Scholar Allowances,Award Costs,Scholar,PIN030844,641.86,
DFID,CSC,21/12/2017,Scholar Allowances,Award Costs,Scholar,PIN030845,687,
DFID,CSC,21/12/2017,Scholar Allowances,Award Costs,Scholar,PIN030847,687,
DFID,CSC,21/12/2017,Scholar Allowances,Award Costs,Scholar,PIN030848,687,
DFID,CSC,21/12/2017,Scholar Allowances,Award Costs,Scholar,PIN030849,687,
DFID,CSC,21/12/2017,Scholar Allowances,Award Costs,Scholar,PIN030850,687,
DFID,CSC,22/12/2017,Bank Charges,Award Costs,Mastercard Prepaid Management Services Ltd,PIN030992,634.47,
DFID,CSC,22/12/2017,Scholar Stipend,Award Costs,Scholar,PIN030992,4778.09,
DFID,CSC,22/12/2017,Scholar Stipend,Award Costs,Scholar,PIN030992,4871.45,
DFID,CSC,22/12/2017,Scholar Allowances,Award Costs,Scholar,PIN030992,170,
DFID,CSC,22/12/2017,Scholar Stipend,Award Costs,Scholar,PIN030992,3195,
DFID,CSC,22/12/2017,Scholar Stipend,Award Costs,Scholar,PIN030992,4881,
DFID,CSC,22/12/2017,Scholar Stipend,Award Costs,Scholar,PIN030992,6057,
DFID,CSC,22/12/2017,Scholar Stipend,Award Costs,Scholar,PIN030992,6057,
DFID,CSC,22/12/2017,Scholar Allowances,Award Costs,Scholar,PIN030992,200,
DFID,CSC,22/12/2017,Scholar Stipend,Award Costs,Scholar,PIN030992,4881,
DFID,CSC,22/12/2017,Scholar Allowances,Award Costs,Scholar,PIN030992,200,
DFID,CSC,22/12/2017,Scholar Stipend,Award Costs,Scholar,PIN030992,4881,
DFID,CSC,22/12/2017,Scholar Allowances,Award Costs,Scholar,PIN030992,375,
DFID,CSC,22/12/2017,Scholar Stipend,Award Costs,Scholar,PIN030992,4881,
DFID,CSC,22/12/2017,Scholar Stipend,Award Costs,Scholar,PIN030992,6057,
DFID,CSC,22/12/2017,Scholar Allowances,Award Costs,Scholar,PIN030992,200,
DFID,CSC,22/12/2017,Scholar Stipend,Award Costs,Scholar,PIN030992,5231.99,
DFID,CSC,22/12/2017,Scholar Allowances,Award Costs,Scholar,PIN030992,250,
DFID,CSC,22/12/2017,Scholar Allowances,Award Costs,Scholar,PIN030992,250,
DFID,CSC,22/12/2017,Scholar Allowances,Award Costs,Scholar,PIN030992,250,
DFID,CSC,22/12/2017,Scholar Allowances,Award Costs,Scholar,PIN030992,200,
DFID,CSC,22/12/2017,Scholar Allowances,Award Costs,Scholar,PIN030992,250,
DFID,CSC,22/12/2017,Scholar Allowances,Award Costs,Scholar,PIN030992,250,
DFID,CSC,22/12/2017,Scholar Stipend,Award Costs,Scholar,PIN030992,4881,
DFID,CSC,22/12/2017,Scholar Allowances,Award Costs,Scholar,PIN030992,200,
DFID,CSC,22/12/2017,Scholar Allowances,Award Costs,Scholar,NOM000663,-468.82,
DFID,CSC,22/12/2017,Scholar Allowances,Award Costs,Scholar,NOM000663,-468.82,
DFID,CSC,27/12/2017,Scholar Engagement,Programme Costs,Safestay,NOM000664,-1874.4,
DFID,CSC,05/12/2017,Visa Costs,Award Costs,NatWest CC,NOM000666,42,
DFID,CSC,05/12/2017,Scholar Engagement,Programme Costs,NatWest CC,NOM000666,321.92,
DFID,CSC,05/12/2017,Scholar Engagement,Programme Costs,NatWest CC,NOM000666,131.25,
DFID,CSC,05/12/2017,Scholar Engagement,Programme Costs,NatWest CC,NOM000666,183.48,
